Workbook

Sheet Cover

Sheet About
C7: About the ESG Factbook
C9: A.P. Moller - Maersk's (Maersk) ESG Factbook outlines our performance on ESG key indicators. It also includes our reporting against ESG reporting standards and frameworks, including SASB and TCFD, as well as our performance on a select number of prioritised external ESG ratings and benchmarks. The ESG Factbook is a supplement to our Sustainability Report 2022.
C10: The Sustainability Report 2022 can be downloaded here
C14: Content
C16: Environmetal indicators
C18: Climate change
C19: Energy consumption | D19: Climate Change
C20: Greenhouse Gas (GHG) Emissions
C21: Biogenic emissions
C22: Segment specific Climate Change KPIs
C23: Board and management oversight
C25: Environment & Ecosystems
C26: Other air emissions | D26: Environ. & Ecosystems
C27: Other resource consumption
C28: Environmental incidents
C29: Management systems
C31: Social indicators
C33: Human Capital
C34: Number of employees | D34: Human Capital
C35: Employee engagement
C36: Employee attraction and retention
C38: Diversity, Equity and Inclusion
C39: Gender diversity | D39: DEI
C40: Women in management
C41: Nationalities
C43: Human rights
C44: Human rights training | D44: Human rights
C46: Employee relations and labour rights
C47: Employee relations and labour rights training | D47: Employee relations and rights
C49: Safety & Security
C50: Fatalities | D50: Safety & Security
C51: Lost-time injury frequency
C52: Safety and security management
C54: Sustainable, inclusive trade
C55: Priorities and actions | D55: Sustainable, inclusive trade
C57: Governance indicators
C59: Corporate governance
C60: Board of Directors | D60: Corporate governance
C61: Chairmanship
C62: Audit Committee
C63: Remuneration Committee
C64: Nomination Committee
C65: Transformation & Innovation Committee
C66: Executive Board (Executive Leadership Team)
C68: Business ethics
C69: Whistleblower cases | D69: Business ethics
C70: Report outcomes and actions
C71: Business ethics training
C72: Operations covered by a risk assessment on compliance and business ethics
C74: Sustainable procurement
C75: Sustainable procurement management | D75: Sustainable procurement
C77: Responsible tax
C78: Total tax for the year | D78: Responsible tax
C80: Citizenship
C81: Priorities and actions | D81: Citizenship
C83: Data ethics
C84: Data ethics training | D84: Data ethics
C86: EU Taxonomy reporting
C88: Taxonomy summary
C89: EU Taxonomy reporting summary | D89: Taxonomy summary
C90: EU Taxonomy Reporting accounting policies
C92: Revenue
C93: Share of eligible and aligned revenue | D93: Revenue
C95: Capex
C96: Share of eligible and aligned capex | D96: Capex
C98: Opex
C99: Share of eligible and aligned opex | D99: Opex
C101: ESG standards, frameworks and ratings
C103: SASB
C104: Greenhouse Gas Emissions | D104: SASB
C105: Air quality
C106: Ecological impacts
C107: Employee Health & Safety
C108: Business ethics
C109: Accident & Safety Management
C110: Activity metrics
C112: TCFD
C113: TCFD disclosures | D113: TCFD
C115: Ratings
C116: CDP | D116: Ratings
C117: EcoVadis
C118: MSCI
C119: S&P DowJones
C120: Sustainalytics
C121: CA100+ Net-Zero Company Benchmark

Sheet Basis of reporting
C7: Basis of reporting
C10: Reporting period
C11: A.P. Moller – Maersk A/S (Maersk) ESG performance data reporting covers the period from 1 January to 31 December 2022.
C13: Reporting boundaries and use of reporting frameworks
C14: Our approach to sustainability reporting is to focus on material issues and activities, in line with double materiality principles encompassing both the social and environmental impact of and on our business and ensuring consideration of context and balance. We are guided by the reporting principles set out in the GRI 101: Foundation Standard to determine the report content and quality in terms of materiality, stakeholder inclusiveness, sustainability context, completeness, balance, comparability, accuracy, timeliness, clarity and reliability.
C16: Scope and consolidation
C17: Unless otherwise stated, the ESG performance data is reported on the basis of the same principles as the financial statements. Thus, the ESG performance data includes consolidated data from the parent company, A.P. Moller - Maersk A/S, and subsidiaries controlled by Maersk. Data is collected per legal entity per activity, and the figures are consolidated line-by-line. Consolidation of ESG performance data using financial scope implies that: • data relating to owned and leased-in assets is included • data from owned assets that are leased out is not included
C19: Technical management of an asset on behalf of third parties follow the same consolidation principles. Thus, data is consolidated by the asset owner/lessee who uses the asset.
C20: The consolidation for Safety (Fatalities and Lost-time injury frequency) data differs from the financial principles described above. Safety data is consolidated using an operational scope approach. This means that Maersk includes all safety data when A.P. Moller - Maersk or one of its subsidiaries has the governing authority and responsibility for health, safety and environmental management of the people, the processes and the facility. This approach excludes safety data from assets that are partly owned by Maersk, but not within Maersk’s operational control. Mobile assets are included when operated by Maersk. For vessels, the International Safety Management Code Document of Compliance must be held by Maersk to include the safety data.
C22: The consolidation of greenhouse gas (GHG) emissions data is based on the financial consolidation approach and stated in accordance with the GHG Protocol: direct emissions from owned and leased-in assets (scope 1), indirect emissions from purchased electricity and district heating (scope 2), and value chain emissions (scope 3), which also includes emissions related to leased out assets. To ensure completeness in reported data from our offices, office standards have been developed, which can be used for offices with no production or warehouses. The office standards define average consumption values per FTE and are only used if other more accurate information is not available.
C24: Data from divestments are included until the day of transaction, while data from acquisitions are included from the reporting year following the transaction. In 2022, Maersk completed the acquisitions of Pilot Freight Services (Pilot), Senator International (Senator) and LF Logistics. Data from these companies will be included in the Sustainability Report 2023. We have for the first time in 2022 included data from Visible SCM and B2C Europe. Data from MCI is included as MCI remains a Maersk company.
C26: Changes affecting the ESG performance data in 2022
C27: For the first time in 2022, Maersk is reporting against the ESG strategy and KPIs announced in the 2021 Sustainability Report. Reflecting this, Maersk has included the following new ESG KPIs in the ESG performance data.
C29: Environment: • Climate change: % of Ocean freight transported with green fuels • Climate change: Reduction in carbon intensity (Ocean) by 2030 (baseline year 2020). This KPI replaces the ‘Relative CO₂ reduction (percentage vs 2008 baseline), which is the same metric with a different baseline that Maersk has previously reported on. • Climate change: Reduction of absolute scope 1 and 2 emissions from Terminals by 2030 (2020 baseline). • Environment & Ecosystems: Number of containers lost at sea.
C31: Social: • Human capital: Employee Engagement Survey (EES) percentile rank on global norms • Labour rights: % of employees trained in Employee labour rights • Safety & Security: % of Learning Teams completed following a high potential incident
C33: Governance: • Sustainable Procurement: % of suppliers committing to Maersk Supplier Code of Conduct • Sustainable Procurement: % of Tier 1 high-risk category/ strategic suppliers undergoing ESG assessments • Sustainable Procurement: % of High-risk category suppliers with Improvement Plan successfully closed • Business ethics: % of operations covered by a risk assessment on compliance and business ethics risks • Business ethics: Number of whistleblower cases • Business ethics: % of employees completing Maersk Code of Conduct training • Data ethics: % of employees completing data ethics e-learning
C35: Improved scope 3 methodology In 2022, the following improvements were undertaken to improve Maersk’s understanding and overview of its scope 3 emissions: • Utilised CEDA 6.0 methodology to account for differences in Consumer Price Index (CPI) across countries and industries to improve spend-based estimates. • Improved estimates of well-to-tank emissions (scope 3.3) for energy use reported in scopes 1 and 2 to reflect Maersk’s global energy sourcing activities. • Improved estimates of emissions from materials purchased for container manufacturing by Maersk Container Industry under scope 3.1 Purchased Goods and Services. • Included the use phase emissions from MCI containers in scope 3.11. • Improved calculation of emissions from vessel-sharing agreements in scope 3.4 Upstream Transport and Distribution by replacing spend-based estimates with activity data. Emissions are calculated following the GLEC methodology, utilising Clean Cargo factors.
C37: Accounting for these improvements, scope 3 estimates for 2020 and 2021 have been recalculated and restated. This results in increased scope 3 emissions of 36,487 (1,000 tonnes CO2e) in 2020, 34% higher than previously stated. For 2021, this results in an increase of 39,436 (1,000 tonnes CO2e), 36% higher than previously stated.
C39: Restatement of data from prior years In 2022, work to improve Maersk’s ESG reporting processes and data quality has been performed. This has led to a restatement of numbers reported in relation to energy consumption, GHG emissions, other air emissions and other resource consumption data for 2020 and 2021.
C41: External assurance All data in this report marked with a ' * ' is in scope of the Independent limited assurance report on the ESG performance data 2022 provided by PwC. Please refer to the Independent limited assurance report on the ESG performance data on page 71 in the Sustainability Report 2022 for more information about PwC's limited assurance. The accounting policies for how the ESG data has been prepared, is also found in the Sustainability Report 2022, on pages 64-69.
C44: Maersk has been a signatory of the UN Global Compact Since 2009.
C45: See reporting here

Sheet ESG Governance model
C7: Maersk Governance Model
C9: Responsibility for ESG is ultimately anchored with the company’s Board of Directors, who endorses the overall ESG strategy and approves major investments such as the green methanol-enabled vessels.
C11: The Audit Committee takes an active role to ensure oversight of key ESG risks, and during 2022 received quarterly updates on sustainability and ESG reporting process development. The Remuneration Committee in 2022 had particular focus on ESG-linked executive remuneration KPIs and targets: Starting in 2023, executive compensation will be directly tied to the outcomes on selected ESG targets (decarbonisation, safety and diversity) through the Long Term Incentive (LTI) programme. It will represent 20% of Executive Leadership Team (ELT) LTI compensation.
C13: All of the 14 ESG categories are owned and led by a member of the ELT, who drives the initiatives forward and is responsible towards the full executive team and the Board of Directors for delivering the intended outcomes. Quarterly updates on ESG strategy progress across all categories are provided to the ELT to facilitate oversight and support decision-making on strategic dilemmas and risks.
C15: The Risk and Compliance Committee, chaired by Caroline Pontoppidan, Maersk's General Counsel and Head of Corporate Affairs, has oversight of key risk and compliance processes and topics across Maersk, including the Commit governance framework* and enterprise risk management. ESG topics are addressed as part of these processes, and through annual updates on key topic areas including human rights, sustainable procurement, labour rights and sustainability reporting.
C17: The ESG SteerCo is a central committee to oversee ESG governance, performance management and external reporting. With Caroline Pontoppidan as ELT member presiding and senior participants across Strategy, Sustainability, Finance and Decarbonisation, this SteerCo guides and facilitates review of ESG strategy and governance and enables oversight of significant regulatory developments and trends across the ESG agenda.
C19: * Maersk's Commit Governance framework sets the foundation for how we are committed to work in Maersk to ensure compliance with relevant laws, regulations and responsible business practices as well as ensure adequate risk mitigation. Having one set of rules that applies to all brands helps employees understand how to live up to our Core Values and the standards set in the Code of Conduct.
C46: * Please note that this reflects our Governance for 2022. From 2023, ESG governance will change in alignment with changes in Maersk’s executive leadership team
C48: Maersk core values
C49: Maersk builds on an impressive heritage of pioneering success and growth. Our long legacy and our values guide our business every day and also ensure that we can do business tomorrow. We have always explored new frontiers and embraced new technologies because we see change as an opportunity. And by living our values, we inspire trust in our efforts to integrate the world.
C51: Constant care Take care of today, actively prepare for tomorrow. Whether solving today’s challenges or exploring opportunities to shape the future, we anticipate, innovate and strive to improve everything we do.
C53: Humbleness Listen, learn and share to create value for others. We stay curious, open-minded and respect other perspectives, always seeking to learn from each other, our customers, and the world around us. We only succeed together.
C55: Our employees The right environment for our people. Connected by real purpose, we create opportunities to grow, develop and exceed expectations. We win together as a diverse and global workplace where people feel safe, valued and empowered.
C57: Uprightness Our word is our bond. Every day, we earn the trust of our customers and partners. They can rely on us to keep our promises and do the right thing, even when it’s hard. We speak openly and honestly, and always act with integrity.
C59: Our name Everything we stand for. Our name is a promise and a commitment to trust and excellence. We are all ambassadors representing and safeguarding the Maersk name, striving for a more sustainable and integrated world.
C61: For more, please see:
C62: Maersk-com - our core values
C63: Maersk Code of conduct
C64: Maersk Supplier Code of Conduct

Sheet Strategic ESG Targets
C1: Data ethics
C7: Strategic ESG Targets
C9: Maersk ESG strategy
C10: A.P. Moller - Maersk’s (Maersk’s) ESG strategy was launched in early 2022. Building on many years of sustainability progress, the strategy charts an even more ambitious course and establishes ESG as core to our purpose and intrinsic to our strategy and operations. Working actively and strategically with all aspects of sustainability risks and impacts is today a baseline requirement from our customers, investors, employees, regulators and broader society.
C12: The ESG strategy encompasses all material sustainability impacts, risks and opportunities for Maersk, centred around three core commitments with supporting KPIs and targets: 1. We will take leadership in the decarbonisation of logistics 2. We will ensure that our people thrive at work by providing a safe and inspiring workplace 3. We operate based on responsible business practices
C14: These represent the areas where Maersk can create the most significant impact due to our company’s position, size and reach, and which are critical to the success of our Global Integrator strategy.
C16: Strategic Targets | G16: 2022 Progress
C18: Environmental targets | G18: Performance on Environmental targets
C20: Topic | D20: Target year | E20: Target | G20: 2022 performance | H20: More information
C21: Climate change | D21: 2030 | E21: Industry-leading green customer offerings across the supply chain | G21: Segment-specific climate change KPI developed in 2022 | H21: Climate change
C22: Climate change | D22: 2030 | E22: Aligned with a Science Based Targets Initiative 1.5-degree Pathway | G22: Maersk's Science Based Targets will be validated in 2023 | H22: Climate change
C23: Climate change | D23: 2040 | E23: 100% green solutions to customers | G23: Segment-specific climate change KPI developed in 2022 | H23: Climate change
C24: Climate change | D24: 2040 | E24: Net Zero across our business and 100% green solutions to customers | G24: Maersk's Science Based Targets will be validated in 2023 | H24: Climate change
C26: Social targets | G26: Performance on Social targets
C28: Topic | D28: Target year | E28: Target | G28: 2022 performance | H28: More information
C29: Safety & Security | D29: 2023 | E29: 100% Learning Teams completed following a High Potential Incident | G29: 0.83 | H29: Safety & Security
C30: Safety & Security | D30: 2023 | E30: Global Leadership (top 1,200) upskilled in Maersk Safety & Security Principles | G30: Training developed and will be rolled out in 2023 | H30: Safety & Security
C31: DEI | D31: 2025 | E31: >40% women in management and leadership (Job Level 4+) | G31: 0.33 | H31: DEI
C32: DEI | D32: 2025 | E32: >30% diverse nationality (non-OECD) of executives (JL 8 & 9) | G32: 0.16 | H32: DEI
C33: Human capital | D33: 2025 | E33: Employee engagement survey score in the top quartile of global norm | G33: 67th percentile | H33: Human capital
C35: Governance targets | G35: Performance on Governance targets
C37: Topic | D37: Target year | E37: Target | G37: 2022 performance | H37: More information
C38: Business ethics | D38: 2023 | E38: 100% of employees trained in Maersk Code of Conduct | G38: 0.83 | H38: Business ethics
C39: Data ethics | D39: 2023 | E39: 100% of employees trained on data ethics | G39: 0.67 | H39: Data ethics
C40: Sustainable procurement | D40: 2024 | E40: 100% of suppliers committed to the Supplier Code of Conduct | G40: 0.96 | H40: Sustainable procurement

Sheet Environmental >>
B5: Environmental KPIs
B7: Climate change
B8: Energy consumption | C8: Climate change
B9: Greenhouse Gas (GHG) emissions
B10: Biogenic emissions
B11: Segment specific climate change KPIs
B12: Board and management oversight
B14: Environment & Ecosystems
B15: Other air emissions | C15: Environment & Ecosystems
B16: Other resource consumption
B17: Environmental incidents
B18: Management systems

Sheet Climate change
B5: Climate change
B7: Why it matters The world is facing a climate emergency. We see it as our obligation – as an industry leader and with the resources available to us – to do all we can to get to net zero GHG operations as fast as possible and to help our customers decarbonise their global supply chains end-to-end.
B9: Ambition We will deliver an emergency response to the climate crisis and take leadership in the transformation of the transport and logistics sector to net zero operations.
B11: Resources
B12: Sustainability Report 2022, pages 21-33
B13: Maersk.com - climate change
B14: Green finance framework
B15: Maersk positions on climate change regulation and lobbying
B16: Maersk' CDP submission
B18: KPIs | L18: ACCOUNTING POLICIES
B20: Energy consumption
B22: Indicator | C22: Unit | D22: Target | E22: 2022 | F22: Development since last year | G22: 2021 | H22: 2020 | I22: 2019 | J22: Assured by PwC | L22: Energy consumption
B23: Total energy consumption | C23: TJ | E23: 447345 | F23: =(E23-G23)/G23 -> -0.05461465633 | G23: 473188 | H23: 432767 | I23: 463815 | J23: * | L23: Energy consumption encompasses all fuel oil, gas fuels, other fuels (diesel, gasoline, kerosene, and heating oil), and biofuel as well as the consumption of electricity / district heating and renewable energy that is consumed/combusted at Maersk controlled entities/vessels.
B24: Fuel oil | C24: 1,000 tonnes | E24: 10320 | F24: =(E24-G24)/G24 -> -0.06884417576 | G24: 11083 | H24: 10368 | I24: 11173 | J24: *
B25: - Heavy fuels | C25: 1,000 tonnes | E25: =6803.64+239.84+2581.41 -> 9624.89 | F25: -0.07834051518 | G25: 10443 | H25: 9790 | I25: 10515 | J25: *
B26: - Marine diesel oil (MDO) and Marine Gas oil (MGO) | C26: 1,000 tonnes | E26: =178.31+517.11 -> 695.42 | F26: 0.0882942097 | G26: 639 | H26: 577.4 | I26: 657.62 | J26: *
B27: Gas fuels | C27: 1,000 tonnes | E27: 21 | F27: =(E27-G27)/G27 -> 0 | G27: 21 | H27: 21 | I27: 10 | J27: *
B28: - Liquefied Petroleum Gas (LPG) | C28: 1,000 tonnes | E28: 0.45 | F28: =(E28-G28)/G28 -> -0.04255319149 | G28: 0.47 | H28: 0.3 | I28: 1 | J28: *
B29: - Liquefied Natural Gas (LNG) | C29: 1,000 tonnes | E29: 0.01 | F29: 0 | G29: 0 | H29: 0 | I29: 0.011 | J29: *
B30: - Natural gas | C30: 1,000 tonnes | E30: 20.78 | F30: 0.006295399516 | G30: 20.65 | H30: 20 | I30: 9.334 | J30: *
B31: Other fuels (excl. biofuels) | C31: 1,000 tonnes | E31: 207 | F31: -0.1 | G31: 230 | H31: 134 | I31: 130 | J31: *
B32: - Kerosene (for air transportation) | C32: 1,000 tonnes | E32: 0.49 | F32: -0.3875 | G32: 0.8 | H32: 1.2 | I32: 0 | J32: *
B33: - Diesel | C33: 1,000 tonnes | E33: 204.38 | F33: =(E33-G33)/G33 -> -0.0976998808 | G33: 226.51 | H33: 130 | I33: 128.22 | J33: *
B34: - Gasoline | C34: 1,000 tonnes | E34: 1.85 | F34: -0.1552511416 | G34: 2.19 | H34: 2.51 | I34: 1.65 | J34: *
B35: - Heating oil | C35: 1,000 tonnes | E35: 0.45 | F35: 0.125 | G35: 0.4 | H35: 0.55 | I35: 0.43 | J35: *
B36: Biofuels | C36: 1,000 tonnes | E36: 354 | F36: =(E36-G36)/G36 -> 3.336640941 | G36: 81.63 | H36: 32.2 | I36: 8.41 | J36: *
B37: Electricity | C37: 1,000 MWh | E37: 695 | F37: -0.05953991881 | G37: 739 | H37: 682 | I37: 657 | J37: *
B38: Renewable energy consumption | C38: 1,000 MWh | E38: 207 | F38: 0.2545454545 | G38: 165 | H38: 125 | I38: 2 | J38: * | L38: Renewable energy consumption is the amount of energy from solar panels, wind turbines, biomass and batteries that is consumed at Maersk controlled entities/vessels and used for electricity or heating. This includes both generation on site and purchases from the grid.
B40: Greenhouse Gas (GHG) emissions
B42: Indicator | C42: Unit | D42: Target | E42: 2022 | F42: Development since last year | G42: 2021 | H42: 2020 | I42: 2019 | J42: Assured by PwC | L42: GHG emissions
B43: Total GHG emissions (scope 1, 2 - location-based - and 3) | C43: 1,000 tonnes CO2 eq | E43: =E45+E46+E48 -> 77956.667 | F43: =(E43-G43)/G43 -> 0.02059599987 | G43: =G45+G46+G48 -> 76383.473 | H43: =H45+H46+H48 -> 70784.482 | I43: - | J43: * | L43: Total GHG emissions have been stated as both the sum of reported scope 1, scope 2 (location-based) and scope 3 emissions as well as scope 1, scope 2 (market-based) and scope 3 emissions.
B44: Total GHG emissions (scope 1, 2 - market-based - and 3) | C44: 1,000 tonnes CO2 eq | E44: =E45+E47+E48 -> 77931.667 | F44: =(E44-G44)/G44 -> 0.02048246378 | G44: =G45+G47+G48 -> 76367.473 | H44: =H45+H47+H48 -> 70808.482 | J44: *
B45: - Direct GHG emissions (scope 1 GHG protocol) | C45: 1,000 tonnes CO2 eq | E45: 34150 | F45: =(E45-G45)/G45 -> -0.06683790578 | G45: 36596 | H45: 33973 | I45: 36204 | J45: * | L45: Direct GHG (scope 1) is the sum of all six Kyoto gasses converted to CO₂ equivalents. Kyoto gasses comprise: CO₂, CH₄, and N₂O, which are calculated based on amount of direct energy (i.e. the fuels stated under ‘Energy consumption’) that are consumed/combusted and HFCs, SF₆, and NF₃, which are based on direct consumption at Maersk controlled entities/vessels.
B46: - Indirect GHG emissions (scope 2 GHG protocol) - location-based | C46: 1,000 tonnes CO2 eq | E46: 356 | F46: 0.01424501425 | G46: 351 | H46: 324 | I46: 287 | J46: * | L46: Indirect GHG (scope 2) is the CO₂ equivalents’ converted sum of CO₂, CH₄ and N₂O, calculated based on consumed electricity and district heating bought from a third party and using location-based IEA emission factors.
B47: - Indirect GHG emissions (scope 2 GHG protocol) - market-based | C47: 1,000 tonnes CO2 eq | E47: 331 | F47: -0.01194029851 | G47: 335 | H47: 348 | I47: - | J47: * | L47: Indirect GHG (scope 2) is the CO₂ equivalents’ converted sum of CO₂, CH₄ and N₂O, calculated based on consumed electricity and district heating bought from a third party and using country-specific market based factors for EU countries and the U.S and IEA factors for other countries.
B48: Total value chain GHG emissions (scope 3 GHG protocol) | C48: 1,000 tonnes CO2 eq | E48: =SUM(E49:E59) -> 43450.667 | F48: =(E48-G48)/G48 -> 0.1017888694 | G48: =SUM(G49:G59) -> 39436.473 | H48: =SUM(H49:H59) -> 36487.482 | I48: - | J48: * | L48: Value chain GHG emissions (scope 3 GHG protocol) are the CO₂equivalents’ converted sum of CO₂, CH₄ and N₂O from value chain activities, and is calculated using a hybrid spend based method i.e. APMM inventory comprises of both spend and activity data, accouting for national nuances. Of the 15 scope 3 categories in the protocol, eleven categories are currently determined as applicable to Maersk’s business model and activities, which may be revised subject to the availability of data. The excluded categories are: Category 9 – downstream transportation and distribution, Category 10 – processing of sold products, Category 14 – franchises and Category 15 – investment. Thus, value chain GHG emissions comprise emissions relating to: Category 1 – purchased goods and services, which are reported based on procurement data and includes Opex goods. Category 2 – capital goods, which is reported based on procurement data and includes our capital investments such as e.g. retrofit of vessels and dry docking. Category 3 - fuel and energy-related activities, which are reported based on actual fuel procured and consumed. Category 4 – upstream transportation and distribution, which is reported based on procurement data multiplied by relevant emission factor per transportation category (air/includes carrier haulage). Category 5 – waste generated in operations, which is reported based on amounts and types of waste. Category 6 – business travel, which is reported based on activity-data for our direct air travel and procurement data for other business travel related activities. Category 7 – employee commuting, which is reported based on employee headcounts per location, estimated commuting distance and transportation modes. Category 8 – upstream leased assets, which is reported based on operations of assets that are leased and not reported in scope 1 and 2. Category 11 - use of sold products, is based on activity data for marine fuels traded by Maersk to third parties. Category 12 – end-of-life treatment of sold products, which is reported based on activity data for retreatment of sold new and second-hand reefers. Category 13 – downstream leased assets, which is reported based on fuel consumption from vessels, tugs and planes leased to third parties. Please refer to ESG Fact Book for a category breakdown of scope 3 emissions.
B49: ... of which is Cat. 1 - purchased goods | C49: 1,000 tonnes CO2 eq | E49: =3821451/1000 -> 3821.451 | F49: =(E49-G49)/G49 -> 0.2099352424 | G49: =3158393/1000 -> 3158.393 | H49: =2604088/1000 -> 2604.088 | I49: - | J49: *
B50: ... of which is Cat. 2 - capital goods | C50: 1,000 tonnes CO2 eq | E50: =500791/1000 -> 500.791 | F50: -0.619202196 | G50: =1315110/1000 -> 1315.11 | H50: =362715/1000 -> 362.715 | I50: - | J50: *
B51: ... of which is Cat. 3 - fuel and energy related activities | C51: 1,000 tonnes CO2 eq | E51: =5988504/1000 -> 5988.504 | F51: -0.07412914317 | G51: =6467969/1000 -> 6467.969 | H51: =6778084/1000 -> 6778.084 | I51: - | J51: *
B52: ... of which is Cat. 4 - upstream transportation and distribution | C52: 1,000 tonnes CO2 eq | E52: =24546755/1000 -> 24546.755 | F52: 0.508247209 | G52: =16275021/1000 -> 16275.021 | H52: =12737077/1000 -> 12737.077 | I52: - | J52: *
B53: ... of which is Cat. 5 - waste generated in operations | C53: 1,000 tonnes CO2 eq | E53: =5221/1000 -> 5.221 | F53: 0.09066221015 | G53: =4787/1000 -> 4.787 | H53: =4053/1000 -> 4.053 | I53: - | J53: *
B54: ... of which is Cat. 6 - business travel | C54: 1,000 tonnes CO2 eq | E54: =157417/1000 -> 157.417 | F54: 0.3005047793 | G54: =121043/1000 -> 121.043 | H54: =81409/1000 -> 81.409 | I54: - | J54: *
B55: ... of which is Cat. 7 - employee commuting | C55: 1,000 tonnes CO2 eq | E55: =20589/1000 -> 20.589 | F55: 0.1314502391 | G55: =18197/1000 -> 18.197 | H55: =18152/1000 -> 18.152 | I55: - | J55: *
B56: ... of which is Cat. 8 - upstream leased assets | C56: 1,000 tonnes CO2 eq | E56: =147403/1000 -> 147.403 | F56: -0.8264820241 | G56: =849497/1000 -> 849.497 | H56: =641210/1000 -> 641.21 | I56: - | J56: *
B57: ... of which is Cat. 11 - use of sold products | C57: 1,000 tonnes CO2 eq | E57: =7418639/1000 -> 7418.639 | F57: -0.2787260899 | G57: =10285467/1000 -> 10285.467 | H57: =12363047/1000 -> 12363.047 | I57: - | J57: *
B58: ... of which is Cat. 12 - end-of-life treatment of sold products | C58: 1,000 tonnes CO2 eq | E58: =313255/1000 -> 313.255 | F58: -0.0983729237 | G58: =347433/1000 -> 347.433 | H58: =404607/1000 -> 404.607 | I58: - | J58: *
B59: ... of which is Cat. 13 - downstream leased assets | C59: 1,000 tonnes CO2 eq | E59: =530642/1000 -> 530.642 | F59: -0.1059950535 | G59: =593556/1000 -> 593.556 | H59: =493040/1000 -> 493.04 | I59: - | J59: *
C61: Pie chart title | D61: ="2022 GHG footprint: "&LEFT(TEXT(E43,"0"),2)&","&MID(TEXT(E43,"0"),3,3)&" ("&C43&")" -> 2022 GHG footprint: 77,957 (1,000 tonnes CO2 eq) | E61: ="Drivers of scope 3 changes: "&LEFT(TEXT(E48,"0"),2)&","&MID(TEXT(E48,"0"),3,3)&" ("&C48&")" -> Drivers of scope 3 changes: 43,451 (1,000 tonnes CO2 eq) | F61: 2022 | G61: 2021 | L61: *Rethink drivers of change graph
D62: 2022 | E62: Purchased goods | F62: =E49 -> 3821.451 | G62: =G49 -> 3158.393
C63: Scope 1 | D63: =E45 -> 34150 | E63: Capital good | F63: 500.791 | G63: 1315.11
C64: Scope 2 (location-based) | D64: =E46 -> 356 | E64: Fuel and energy related activities | F64: 5988.504 | G64: 6467.969
C65: Scope 3 | D65: =E48 -> 43450.667 | E65: Upstream transportation and distribution | F65: 24546.755 | G65: 16275.021
E66: Waste generated in operations | F66: 5.221 | G66: 4.787
E67: Business travel | F67: 157.417 | G67: 121.043
E68: Employee commuting | F68: 20.589 | G68: 18.197
E69: Upstream leased assets | F69: 147.403 | G69: 849.497
E70: Use of sold products | F70: 7418.639 | G70: 10285.467
E71: End-of-life treatment of sold products | F71: 313.255 | G71: 347.433
E72: Downstream leased assets | F72: 530.642 | G72: 593.556
E75: =RIGHT(D73,3) -> 
B78: Biogenic emissions
B80: Indicator | C80: Unit | D80: Target | E80: 2022 | F80: Development since last year | G80: 2021 | H80: 2020 | I80: 2019 | J80: Assured by PwC | L80: GHG emissions
B81: Biogenic emissions | C81: 1,000 tonnes CO2 eq | E81: 939 | F81: =(E81-G81)/G81 -> 3.082608696 | G81: 230 | H81: 85 | I81: - | L81: Maersk's biogenic CO2 emissions are mainly a result of the combustion biofuel with Maersk vessels and operations.
B83: Segment specific Climate Change KPIs
B85: Indicator | C85: Unit | D85: Target | E85: 2022 | F85: Development since last year | G85: 2021 | H85: 2020 | I85: 2019 | J85: Assured by PwC
B86: Ocean: share of freight transported with green fuels | C86: % of FFE | D86: 25% by 20230 | E86: 2 | F86: - | G86: - | H86: - | I86: - | J86: * | L86: The share of freight transported with green fuels is calculated as the share of FFE (Forty Foot container Equivalent) containers transported using Maersk’s EcoDelivery product out of the total FFEs transported by Maersk in the Ocean segment during the year. Transportation data, both total and EcoDelivery-labelled, is based on registrations in Maersk’s Line of Sight system, which captures all container bookings in Maersk’s Ocean segment.
B87: Ocean: Reduction in caron intensity (EEOI) by 2030 (2020 baseline) | C87: % reduction | D87: 50% by 2030 | E87: -7 | F87: =E87-G87&" %-points" -> -1 %-points | G87: -6 | H87: 0 | I87: - | J87: * | L87: Maersk’s Ocean: Reduction in carbon intensity (EEOI) by 2030 (2020 baseline) covers container vessels under APMMs operation. We report on relative CO₂ emissions reduction using EEOI (Energy Efficiency Operational Indicator) methodology. EEOI is defined by IMO in MEPC.1/Circ.684 and is calculated as gCO₂/(Ton cargo x Nm). In practice we calculate EEOI on voyage level and aggregate it in the following way: (g CO2 voy1 + g CO2 voy2 + g CO2 voy3) / ((Ton cargo x Nm)voy 1+ (Ton cargo x Nm)voy 2+ (Ton cargo x Nm)voy 3) The data sources are: 1. g CO₂ – based on fuel consumption, from departure voyage 1, to departure voyage 2, multiplied with relevant CO₂ factor (3.114 for HFO, 3.206 for MDO). 2. Ton cargo – calculated via draft and displacement tables, subtracting vessel weight and ballast water and fuel stock. 3. Nm – GPS distance from departure voyage 1, to departure voyage 2.
B88: Relative CO2 performance (actual EEOI) | C88: g CO2/(ton x nm) | D88: 6.1 by 2030 | E88: 13.03 | F88: =(E88-G88)/G88 -> 0.004626060139 | G88: 12.97 | H88: 12.23 | I88: 12.5 | J88: *
B89: Terminals: Reduction of scope 1 and 2 baseline emission by 2030 (2020 baseline) | C89: % reduction | E89: 5.4 | F89: - | G89: - | H89: 0 | I89: - | J89: * | L89: The reduction of scope 1 and 2 emissions from APM Terminals is calculated as the percentage reduction of scope 1 and 2 emissions during the year compared to the scope 1 and 2 emissions from APM Terminals in 2020.
D91: Ocean energy efficiency performance, 2022 | E91: Target | F91: Current
D92: 2030 | E92: 0.5 | F92: 0.5
D100: 2022 | E100: 1.07 | F100: 1.07
D101: 2021 | F101: 1.06
D102: 2020 | F102: 1
B104: Board and management oversight
B106: Indicator | C106: Unit | D106: Target | E106: 2022 | F106: Development since last year | G106: 2021 | H106: 2020 | I106: 2019 | J106: Assured by PwC
B107: Board of Directors oversight and/or management of climate-related risks | C107: Yes/No | E107: Yes | F107: N/A | G107: Yes | H107: Yes | I107: Yes | L107: Responsibility of climate along with the other ESG topics is ultimately anchored with the Board of Directors. All of the 14 ESG categories are owned and led by a member of the Executive Leadership Team (ELT) who drives the initiatives forward and is responsible towards the full executive team and the Board of Directors for delivering the intended outcomes. For more information, please see 'Our Governance Model' in the introductory section of this ESG Factbook.
B108: Senior Management Team oversight and/or management of climate-related risks | C108: Yes/No | E108: Yes | F108: N/A | G108: Yes | H108: Yes | I108: Yes

Sheet Environ. & Ecosystems
B5: Environment & Ecosystems
B7: Why it matters We have a responsibility to minimise negative environmental impacts from our operations, in compliance with regulations, and to live up to the requirements and expectations of our customers and other key stakeholders.
B9: Ambition We see ourselves as active citizens of the Earth, operating on the oceans and increasingly on land. We are committed to doing as little harm as possible while actively participating in restoring ocean and land health, as well as protecting habitats and biodiversity where we operate. We aspire to be recognised by our stakeholders for our commitment and actions.
B11: Resources
B12: Sustainability Report 2022, pp. 34-37
B13: Maersk.com - Environment & Ecosystems
B14: Ship recycling position
B15: Maersk Responsible Ship Recycling Standard
B17: KPIs | L17: ACCOUNTING POLICIES
B19: Other air emissions
B21: Indicator | C21: Unit | D21: Target | E21: 2022 | F21: Development since last year | G21: 2021 | H21: 2020 | I21: 2019 | J21: Assured by PwC
B22: SOx | C22: 1,000 tonnes | E22: 99 | F22: =(E22-G22)/G22 -> -0.07476635514 | G22: 107 | H22: 102 | I22: 569 | J22: * | L22: SOx are calculated based on fuels consumed multiplied by generally accepted conversion factors for the respective fuels. In case of scrubber use, SOx emissions are reported based on Clean Cargo guidelines, where SOx output is assumed to be maximum for the operating area in which the vessel spends 80% of its time.
B23: NOx | C23: 1,000 tonnes | E23: 604 | F23: =(E23-G23)/G23 -> -0.3182844244 | G23: 886 | H23: 825 | I23: 888 | J23: * | L23: NOx are calculated based on fuels consumed multiplied by generally accepted conversion factors for the respective fuels.
B24: Other air pollutions | C24: 1,000 tonnes | E24: =SUM(E25:E29) -> 179.87 | F24: - | G24: - | H24: - | I24: - | L24: APMM is a partner company of the World Economic Forum’s Clean Air Alliance and has in 2022 for the first time assessed its emissions of air pollutants. The air emissions, with the exception of Black Carbon (BC) and Particulate Matter (PM10) have been prepared based on the methodologies outlined in 'A Practical Guide For Business Air Pollutant Emission Assessment' by the Stockholm Environmental Institute (SEI). Black carbon (BC) and particulate matter (PM10) emissions of own and chartered fleet has been prepared based on IMO’s MEPC 75/7/15. Air emissions from waste treatment are not covered in the scope.
B25: … of which is NMVOCs | C25: 1,000 tonnes | E25: 27.21 | F25: - | G25: - | H25: - | I25: -
B26: … of which is PM10 | C26: 1,000 tonnes | E26: 51.13 | F26: - | G26: - | H26: - | I26: -
B27: … of which is PM2.5 | C27: 1,000 tonnes | E27: 43.25 | F27: - | G27: - | H27: - | I27: -
B28: … of which is Black Carbon | C28: 1,000 tonnes | E28: 2.88 | F28: - | G28: - | H28: - | I28: -
B29: … of which is CO | C29: 1,000 tonnes | E29: 55.4 | F29: - | G29: - | H29: - | I29: -
B31: Air emission
B32: =B22 -> SOx | C32: =E22 -> 99
B33: =B23 -> NOx | C33: =E23 -> 604
B34: Other air pollutants | C34: =SUM(E25:E29) -> 179.87
B42: Other resource consumption
B44: Indicator | C44: Unit | D44: Target | E44: 2022 | F44: Development since last year | G44: 2021 | H44: 2020 | I44: 2019 | J44: Assured by PwC
B45: Waste | C45: 1,000 tonnes | E45: =SUM(E46:E47) -> 459.88 | F45: =(E45-G45)/G45 -> 0.2881792717 | G45: 357 | H45: 289 | I45: 299 | J45: * | L45: Waste from our landside operations is reported as the sum of all waste types generated from Maersk entities. Waste from Maersk’s Ocean fleet is based on actual landing figures from 30 vessels, which have been extrapolated to cover Maersk’s entire fleet, including own and time-chartered vessels.
B46: - Hazardous waste | C46: 1,000 tonnes | E46: 222.16 | F46: 0.0305223119 | G46: 215.58 | H46: 187.9 | I46: 187.2071854
B47: - Non-hazardous waste | C47: 1,000 tonnes | E47: 237.72 | F47: 0.6779840474 | G47: 141.67 | H47: 100.73 | I47: 111.5319053
B48: Water consumption | C48: 1,000 m3 | E48: 2504 | F48: 0.1614100186 | G48: 2156 | H48: 1754 | I48: 1696 | J48: * | L48: Water is reported as the sum of all water consumed, excluding ballast water and water for re-injection.
B49: ...off which consumed in high or very high water stress zones | C49: % | E49: 60 | F49: - | G49: - | H49: - | I49: - | L49: Water stress zones identified using the WRI Aqueduct (www.wri.org/aqueduct) and mapped against water consumption in Maersk facilities located in these zones. Se more on page 37 in Maersk's Sustainability Report 2022.
B51: Water | C51: Current | E51: Water | F51: 2019 | G51: 2020 | H51: 2021 | I51: 2022
B52: 2022 | C52: =E48 -> 2504 | E52: Hazardous | F52: =I46 -> 187.2071854 | G52: =H46 -> 187.9 | H52: =G46 -> 215.58 | I52: =E46 -> 222.16
B53: 2021 | C53: =G48 -> 2156 | E53: Non hazardous | F53: =I47 -> 111.5319053 | G53: =H47 -> 100.73 | H53: =G47 -> 141.67 | I53: =E47 -> 237.72
B54: 2020 | C54: =H48 -> 1754 | F54: =SUM(F52:F53) -> 298.7390906 | G54: =SUM(G52:G53) -> 288.63 | H54: 357.25 | I54: 459.88
B55: 2019 | C55: =I48 -> 1696
B62: Environmental incidents
B64: Indicator | C64: Unit | D64: Target | E64: 2022 | F64: Development since last year | G64: 2021 | H64: 2020 | I64: 2019 | J64: Assured by PwC
B65: Total number of spills (hydrocarbon) | C65: Number | D65: Avoid spills | E65: 210.4 | F65: =(E65-G65)/G65 -> -0.08917748918 | G65: 231 | H65: 441 | I65: 503 | J65: * | L65: All uncontained hydrocarbon liquids resulting from any unintended release associated with current operations. Spills from Maersk’s Ocean fleet are reported based on the registrations in Fleet Management & Technology’s incident database.
B66: - Number of uncontained hydrocarbon spills > 10 m3 | C66: Number | D66: Avoid spills | E66: 0 | F66: -1 | G66: 2 | H66: 2 | I66: 0 | J66: * | L66: Spills is reported as the number of uncontained hydrocarbon liquids spills greater than 10 m3, resulting from any unintended, irreversible release associated with current operations. Spills from Maersk’s Ocean fleet are reported based on the registrations in Fleet Management & Technology’s incident databases.
B67: Total volume of spills (hydrocarbon) | C67: m3 | D67: Avoid spills | E67: 34.47 | F67: =(E67-G67)/G67 -> -0.6922321429 | G67: 112 | H67: 131.338 | I67: 65 | L67: Volume of spills related to all uncontained hydrocarbon liquids resulting from any unintended release associated with current operations. Spills from Maersk’s Ocean fleet are reported based on the registrations in Fleet Management & Technology’s incident database.
B68: Containers lost at sea | C68: Number | D68: Avoid containers lost | E68: 118 | F68: =(E68-G68)/G68 -> -0.8778467909 | G68: 966 | H68: 70 | I68: 2 | J68: * | L68: Containers lost at sea is based on the recorded number of containers (independent of size) lost at sea during the year. This includes containers lost at sea from own and time-chartered vessels but does not include containers falling overboard in ports and other cases where containers will be picked up. The number of containers lost at sea is reported based on the registrations in Fleet Management & Technology’s incident database.
B70: Management systems
B72: Indicator | C72: Unit | D72: Target | E72: 2022 | F72: Development since last year | G72: 2021 | H72: 2020 | I72: 2019 | J72: External certification
B73: Percentage of fleet with Ballast Water Treatment systems installed | C73: % | D73: 1 | E73: 73 | F73: =E73-G73&" %-points" -> 20 %-points | G73: 53 | H73: 28 | I73: 25 | J73: * | L73: By 2022, we have completed installation of Ballast Water Treatment systems on 73% of our fleet and are on track to achieve 100% by September 2024 in line with regulatory requirements of the Ballast Water Management Convention.
B74: The International Safety Management (ISM) Code | C74: % coverage | E74: 100 | F74: 0 | G74: 100 | H74: 100 | I74: 100 | J74: * | L74: 100% of Maersk's container fleet is externally certified in accordance with the International Safety Management (ISM) Code. The ISM Code is an international standard for the safe management and operation of ships and for pollution prevention.
B75: ISO14001 (Environmental Management system) | C75: % coverage | E75: >75 | F75: >5 %-points | G75: >70 | H75: >70 | I75: >70 | J75: * | L75: 100% of Maersk's container fleet and a number of Terminals and landside facilities are externally certified in accordance with the ISO14001 environmental management standard. In 2022, the % ISO14001 coverage of Maersk's operations was more than 75% based on revenue.
B76: Responsible Ship Recycling Standard (RSRS) | C76: % coverage | E76: 100 | F76: 0 | G76: 100 | H76: 100 | I76: 100 | L76: 100% of Maersk's vessels that have been recycled since 2016 have been recycled on yards that meet the requirements outlined in Maersk's Responsible Ship Recycling Standard (RSRS). Maersk´s RSRS goes beyond international rules regarding Health, Safety and Environmental issues, as well as requirements on anti-corruption and labour rights based on long recognized international standards and the Maersk code of conduct.

Sheet Social >>
B5: Social KPIs
B7: Human Capital
B8: Number of employees | C8: Human Capital
B9: Employee engagement
B10: Employee attraction and retention
B12: Diversity, Equity and Inclusion
B13: Gender diversity | C13: DEI
B14: Women in management
B15: Nationalities
B17: Human rights
B18: Human rights training | C18: Human rights
B20: Employee relations and labour rights
B21: Employee relations and labour rights training | C21: Employee relations and rights
B23: Safety & Security
B24: Fatalities | C24: Safety & Security
B25: Lost-time injury frequency
B26: Safety and security management
B28: Sustainable, inclusive trade
B29: Priorities and actions | C29: Sustainable, inclusive Trade

Sheet Human capital
B5: Human capital
B7: Why it matters To deliver on the ambitions of our Global Integrator business strategy, Maersk is dependent on highly engaged employees and significant new capabilities within, for example, technology, data analysis, leadership and sales and marketing. These are all areas where the global competition for talent is fierce. A highly engaged workforce is also essential to delivering on the aspirations of our ESG strategy. Conversely, establishing ourselves as a leader in ESG can be a key enabler to attracting talent in these areas.
B9: Ambition We aspire to create an engaging environment for all colleagues and to become a company where our employees can develop and have thriving careers.
B11: Resources
B12: Sustainability Report 2022, p.43
B13: Maersk.com - Human Capital
B15: KPIs | L15: ACCOUNTING POLICIES
B17: Number of employees
B19: Indicator | C19: Unit | D19: Target | E19: 2022 | F19: Development since last year | G19: 2021 | H19: 2020 | I19: 2019 | J19: Assured by PwC
B20: Total number of employees | C20: FTEs | E20: 104260 | F20: =(E20-G20)/G20 -> 0.2212005857 | G20: 85375 | H20: 83624 | I20: 86279 | J20: * | L20: Total number of employees includes the average number of fulltime equivalents (FTEs) employed by Maersk during the year. This includes FTEs in acquisitions made during the year as the number of employees reported is aligned with what is stated in the Annual Report. Consequently, the Total number of employees also has a different scope from the scope used for Maersk's other ESG reporting, including the headcount numbers referred to in this ESG Factbook. FTEs are calculated based on the total number of compensable hours (days) in a work year compared to the number of hours (days) in a ‘norm’ work year. Temporary employees on salary are included. Excluded are employees on unpaid leave and contractors.
B21: Total number of employees | C21: Headcount | E21: 95966 | F21: - | G21: - | H21: - | I21: - | L21: The scope of total number of employees (headcounts) is everything consolidated within our main HR reporting environment. Excluding acquisitions that occured in 2022 (LF, Pilot, Martin Bencher and Senator).
B22: Employees per segment | F22: -
B23: - Frontline employees | C23: Headcount | E23: 17265 | F23: - | G23: - | H23: - | I23: -
B24: - Office-based employees | C24: Headcount | E24: 61584 | F24: - | G24: - | H24: - | I24: -
B25: -Seafarers | C25: Headcount | E25: 16122 | F25: - | G25: - | H25: - | I25: -
B26: - Unknown | C26: Headcount | E26: 995 | G26: - | H26: - | I26: -
B27: Employees per region | F27: -
B28: - Africa | C28: Headcount | E28: 4283 | F28: - | G28: - | H28: - | I28: -
B29: - Asia Pacific | C29: Headcount | E29: 19063 | F29: - | G29: - | H29: - | I29: -
B30: - Europe | C30: Headcount | E30: 34446 | F30: - | G30: - | H30: - | I30: -
B31: - Latin America | C31: Headcount | E31: 11633 | F31: - | G31: - | H31: - | I31: -
B32: - North America | C32: Headcount | E32: 7237 | F32: - | G32: - | H32: - | I32: -
B33: - West Central Asia | C33: Headcount | E33: 16793 | F33: - | G33: - | H33: - | I33: -
B34: - Unknown | C34: Headcount | E34: 2511 | F34: - | G34: - | H34: - | I34: -
B35: Employees per nationality | F35: -
B36: - India | C36: Headcount | E36: 20717 | F36: - | G36: - | H36: - | I36: -
B37: - China | C37: Headcount | E37: 9730 | F37: - | G37: - | H37: - | I37: -
B38: - Philippines | C38: Headcount | E38: 8053 | F38: - | G38: - | H38: - | I38: -
B39: - Denmark | C39: Headcount | E39: 3744 | F39: - | G39: - | H39: - | I39: -
B40: - American | C40: Headcount | E40: 3515 | F40: - | G40: - | H40: - | I40: -
B41: - Other | C41: Headcount | E41: 50207 | G41: - | H41: - | I41: -
B42: Employees per function | F42: -
B43: - Ocean | C43: Headcount | E43: 15526 | F43: - | G43: - | H43: - | I43: -
B44: - APM Terminals | C44: Headcount | E44: 12296 | F44: - | G44: - | H44: - | I44: -
B45: - Logistics and Services | C45: Headcount | E45: 17522 | F45: - | G45: - | H45: - | I45: -
B46: - Fleet and Strategic Brands | C46: Headcount | E46: 34725 | F46: - | G46: - | H46: - | I46: -
B47: - Technology | C47: Headcount | E47: 5600 | F47: - | G47: - | H47: - | I47: -
B48: - People | C48: Headcount | E48: 2221 | F48: - | G48: - | H48: - | I48: -
B49: - Corporate Affairs | C49: Headcount | E49: 868 | F49: - | G49: - | H49: - | I49: -
B50: - Finance | C50: Headcount | E50: 2571 | F50: - | G50: - | H50: - | I50: -
B51: - Strategy | C51: Headcount | E51: 75 | F51: - | G51: - | H51: - | I51: -
B52: - Other | C52: Headcount | E52: 4562 | F52: - | G52: - | H52: - | I52: -
E54: - Indian | F54: =E36 -> 20717
E55: - Chinese | F55: =E37 -> 9730
E56: - Filipino | F56: 8053
E57: - Danish | F57: 3744
E58: - American | F58: 3515
B68: Employee engagement
B70: Indicator | C70: Unit | D70: Target | E70: 2022 | F70: Development since last year | G70: 2021 | H70: 2020 | I70: 2019 | J70: Assured by PwC
B71: Employee engagement survey score in the top quartile of global norm | C71: Percentile | D71: By 2025, top quartile score | E71: 67th | F71: 8 percentile points | G71: 59th | H71: 54th | I71: 41th | J71: * | L71: The Employee Engagement Survey score in the top quartile of global norm is calculated as Maersk’s aggregated ranking in the top quartile (75% or above) of employee engagement relative to Maersk’s survey vendors’ global organisational employee engagement norm. Gallup is Maersk’s main Employee Engagement Survey provider, covering 97% of employees in scope while one other provider covers the remaining share of Maersk employees in scope. Overall employee engagement percentile score is calculated as the average (mean) of the two respective percentile scores weighted by the total respondents for each survey. 1640 employees in Maersk Supply Services (MSS) are not included in the score as the survey provider used in MSS does not maintain a global norm benchmark. The limited number of employees in MSS does not impact the aggregated results for all of Maersk.
B72: Employee engagement survey participation rate | C72: % | E72: 89 | F72: - | G72: - | H72: - | I72: -
E74: Current | F74: Target
D75: 2025 | E75: 75 | F75: 75
D76: 2024
D77: 2023
D78: 2022 | E78: 67 | F78: 67
D79: 2021 | E79: 59
D80: 2020 | E80: 54
D81: 2019 | E81: 41
B85: Employee attraction and retention
B87: Indicator | C87: Unit | D87: Target | E87: 2022 | F87: Development since last year | G87: 2021 | H87: 2020 | I87: 2019 | J87: Assured by PwC
B88: Total number of new hires | C88: Number | E88: 18863 | F88: =(E88-G88)/G88 -> 0.4465490798 | G88: 13040 | H88: 5694 | I88: 9942 | L88: The scope of total number of employees (headcounts) is everything consolidated within our main HR reporting environment. Excluding acquisitions that occured in 2022 (LF, Pilot, Martin Bencher and Senator).
B89: Percentage of positions filled by internal candidates | C89: % | E89: 25 | F89: - | G89: - | H89: - | I89: -
B90: Total employee turnover rate | C90: % (rate) | E90: 9.6 | F90: =ROUND(E90-G90,2)&" %-points" -> -0,1 %-points | G90: 9.7 | H90: 8.6 | I90: 9.5
B91: Voluntary employee turnover rate | C91: % (rate) | E91: 7.8 | F91: =E91-G91&" %-points" -> 1 %-points | G91: 6.8 | H91: 5.3 | I91: 6.5
B92: Employee retention rate | C92: % (rate) | E92: 79.7 | F92: =E92-G92&" %-points" -> -3,5 %-points | G92: 83.2 | H92: 91.3 | I92: 84.8

Sheet DEI
B5: Diversity, Equity and Inclusion
B7: Why it matters It is a Core Value in Maersk and a basic responsibility not to discriminate against our employees. Discrimination bars people from living up to their full potential, creates inequality and less stable and prosperous societies. Moreover, we need diversity of thought to continue to improve and develop our business. Facilitating a culture where everyone feels comfortable and is treated fairly, will help us gain access to a larger, more diverse pool of talent.
B9: Ambition We want to facilitate diversity of thought and create a more diverse, equitable and inclusive workplace at Maersk, where our employees feel able to bring their whole selves to work and contribute to their fullest. A key priority is to foster gender diversity as this is our largest gap and where there is particular spotlight on company performance.
B11: Resources
B12: Sustainability Report 2022, pp. 44-45
B13: Maersk.com - DEI
B14: Code of Conduct
B15: Diversity and Inclusion Policy
B16: Anti-discrimination, Harassment, Bullying and Violence Policy
B18: KPIs | L18: ACCOUNTING POLICIES
B20: Gender Diversity
B22: Indicator | C22: Unit | D22: Target | E22: 2022 | F22: Development since last year | G22: 2021 | H22: 2020 | I22: 2019 | J22: Assured by PwC
B23: Gender - female/total | C23: % (headcount) | E23: 32.71 | F23: =ROUND(E23-G23,0)&" %-points" -> 2 %-points | G23: 31 | H23: 28 | I23: 28 | J23: * | L23: Gender – female over total is the percentage of women employed in Maersk based on headcount. Headcounts are defined as all employees with an employment contract with Maersk who are on payroll regardless of the type of contract at year end. Excluded are employees on unpaid leave (except parental leave), contractors, and third-party workers.
B25: Women in management and leadership
B27: Indicator | C27: Unit | D27: Target | E27: 2022 | F27: Development since last year | G27: 2021 | H27: 2020 | I27: 2019 | J27: Assured by PwC
B28: Women in management (JL 4+ - % based on headcount) | C28: % (headcount) | D28: 40 | E28: 32.86 | F28: 0 | G28: 33 | H28: 31 | I28: 31 | J28: * | L28: Women in management is the percentage of women at levels 4, 5, 6, 7, 8 and 9, corresponding to Managers, Senior Managers, Leaders, Senior Leaders, and Executives, compared to total headcount of the same levels. Headcounts are defined as all employees with an employment contract with Maersk who are on payroll regardless of the type of contract at year end. Excluded are employees on unpaid leave (except parental leave), contractors, and third-party workers.
B29: Women in leadership (JL 6+ - % based on headcount) | C29: % (headcount) | D29: 30 | E29: 25.69 | F29: =ROUND(E29-G29,0)&" %-points" -> 4 %-points | G29: 22 | H29: 21 | I29: 20 | J29: * | L29: Women in leadership is the percentage of women at levels 6, 7, 8 and 9, corresponding to Leaders, Senior Leaders, and Executives, compared to total headcount of the same levels. Headcounts are defined as all employees with an employment contract with Maersk who are on payroll regardless of the type of contract at year end. Excluded are employees on unpaid leave, contractors, and third-party workers.
C31: Women in management (JL 4+ - % based on headcount)
C32: 2025 | D32: 40 | E32: 40
C33: 2024
C34: 2023
C35: 2022 | D35: =E28 -> 32.86 | E35: 33
C36: 2021 | D36: =G28 -> 33
C37: 2020 | D37: =H28 -> 31
C38: 2019 | D38: =I28 -> 31
B43: Nationalities
B45: Indicator | C45: Unit | D45: Target | E45: 2022 | F45: Development since last year | G45: 2021 | H45: 2020 | I45: 2019 | J45: Assured by PwC
B46: Target nationalities/total (% based on headcount) | C46: % (headcount) | E46: 66.84 | F46: =ROUND(E46-G46,0)&" %-points" -> -5 %-points | G46: 72 | H46: 72 | I46: 71 | J46: * | L46: Target nationalities over total is the percentage of target nationalities with non-high-income OECD nationalities employed based on headcount. Headcounts are defined as all employees with an employment contract with Maersk who are on payroll regardless of the type of contract at year end. Excluded are employees on unpaid leave (except parental leave), contractors, and third-party workers.
B47: Target nationalities in executive leadership (JL 8 & 9 -% based on headcount) | C47: % (headcount) | E47: 16.26 | F47: =ROUND(E47-G47,0)&" %-points" -> 1 %-points | G47: 15 | H47: 12 | I47: 13 | J47: * | L47: Target nationalities in leadership is the percentage of leaders with non-high-income OECD nationalities at levels 8 and 9, corresponding to Executives, compared to total headcount of the same levels. Headcounts are defined as all employees with an employment contract with Maersk who are on payroll regardless of the type of contract at year end. Excluded are employees on unpaid leave (except parental leave), contractors, and third-party workers.

Sheet Human rights
B5: Human rights
B7: Why it matters Many aspects of our business touch on human rights, including our employees' working conditions, health and safety, how our vessels are recycled, how we use digital data and technologies, and our suppliers' business practices. Our conduct within our own business and through our business relationships can therefore have a significant impact on society, both positive and negative. Further, increasing regulation and growing expectations from our stakeholders confirm that human rights is a material topic for Maersk.
B9: Ambition Continue aligning our business practices with the UN Guiding Principles, and ensure that human rights considerations are integrated into our due diligence processes and ESG governance mechanisms.
B11: Resources
B12: Sustainability Report 2022, p. 47
B13: Maersk.com - Human Rights
B14: Code of Conduct
B15: Supplier Code of Conduct
B16: Human rights statement
B17: Modern slavery statement 2022
B18: Just transition
B20: KPIs
B22: Human rights training
B24: Indicator | C24: Unit | D24: Target | E24: 2022 | F24: Development since last year | G24: 2021 | H24: 2020 | I24: 2019 | J24: Assured by PwC
B25: Targeted human rights trainings | C25: Number of key functions | E25: 3 | F25: - | G25: - | H25: - | I25: -
B27: The human rights training in 2022 targeted several key functions and human rights issue owners. This includes targeted training for employees within the functions of compliance, employee relations and labour rights and HSSE.

Sheet Employee relations and rights
B5: Employee relations and labour rights
B7: Why it matters The way we treat our employees and their representatives is fundamental to the way we want to do business. This begins with ensuring respect for internationally recognised labour rights in all our workplaces.
B9: Ambition Employee relations and labour rights are an essential part of Maersk’s Social ambition. We offer decent, fair and equitable working conditions for all our people. We identify risks for employees and third-party labour, and implement mitigating and preventive actions to ensure that our growth adequately considers our full social responsibilities.
B11: Resources
B12: Sustainability Report 2022. p. 46
B13: Maersk.com - Employee Relations & Rights
B14: Code of Conduct
B15: Supplier Code of Conduct
B17: KPIs | L17: ACCOUNTING POLICIES
B19: Employee relations and labour rights training
B21: Indicator | C21: Unit | D21: Target | E21: 2022 | F21: Development since last year | G21: 2021 | H21: 2020 | I21: 2019 | J21: Assured by PwC
B22: Employee relations and labour rights training | C22: Completion rate | D22: 100% by 2023 | E22: 83 | F22: - | G22: - | H22: - | I22: - | J22: * | L22: Employee relations and labour rights training is the completion rate of employees in scope for the Employee relations and labour rights e-learning out of the total employee population in scope. The employees in scope for the e-learning in 2022 is active white-collar Maersk employees. This excludes white-collar employees on long-term leave and employees that have joined Maersk after 31 October in the reporting year. The completion rate is based on registrations in Maersk’s Learning Management system as of 17 January 2023, and completion data up until this date.

Sheet Safety & Security
B5: Safety and Security
B7: Why it matters Safety and security at work is a basic human right, and we have a duty of care to keep our employees and anyone operating on our sites safe. It is a Core Value and a responsibility for us as a company towards our employees, their families and communities.
B9: Ambition We ensure everyone gets home safe by preventing fatal and life-altering incidents.
B11: Resources
B12: Sustainability Report 2022, pp. 41-42
B13: Maersk.com - Safety & Security
B14: HSSE Policy
B16: KPIs | L16: ACCOUNTING POLICIES
B18: Fatalities
B20: Indicator | C20: Unit | D20: Target | E20: 2022 | F20: Development since last year | G20: 2021 | H20: 2020 | I20: 2019 | J20: Assured by PwC
B21: Fatalities | C21: Headcount | E21: 9 | F21: =(E21-G21)/G21 -> 1.25 | G21: 4 | H21: 1 | I21: 5 | J21: * | L21: Fatalities is the headcount number of work-related accidents leading to the death of the employee, both own and contractors or third party within our operational control.
B22: ...of which involved own employees | C22: Headcount | E22: 3 | F22: =(E22-G22)/G22 -> 0 | G22: 3 | H22: 0 | I22: 3 | J22: *
B23: ...of which involved contractors or third-parties | C23: Headcount | E23: 6 | F23: =(E23-G23)/G23 -> 5 | G23: 1 | H23: 1 | I23: 2 | J23: *
D25: Fatalities from own and third-party contractors
C26: Fatalities | D26: 2022 | E26: 2021 | F26: 2020 | G26: 2019 | I26: LTIf
C27: Own employees | D27: =E22 -> 3 | E27: =G22 -> 3 | F27: =H22 -> 0 | G27: 3 | I27: 2022 | J27: =E39 -> 0.9
C28: Third-party contractors | D28: =E23 -> 6 | E28: =G23 -> 1 | F28: =H23 -> 1 | G28: 2 | I28: 2021 | J28: =G39 -> 0.93
I29: 2020 | J29: =H39 -> 1.22
I30: 2019 | J30: =I39 -> 1.16
B36: Lost-time injury frequency
B38: Indicator | C38: Unit | D38: Target | E38: 2022 | F38: Development since last year | G38: 2021 | H38: 2020 | I38: 2019 | J38: Assured by PwC
B39: Lost-time injury frequency (LTIf) | C39: Rate | E39: 0.9 | F39: =(E39-G39)/G39 -> -0.03225806452 | G39: 0.93 | H39: 1.22 | I39: 1.16 | J39: * | L39: Lost-time injury frequency is the number of lost-time injuries per million exposure hours. Lost-time injuries (LTI) is the sum of accidents, which results in a person being unfit for work on any day or shift after the day of occurrence. Excluded from LTIs are suicide or attempted suicide, ‘natural causes’, incidents during the commute to and from the regular place of work and incidents which occur off the ship but where the consequences appear onboard at some later time. Exposure hours are the total number of work hours during which an employee is exposed to work-related hazards and risks. Leave and non-work related sickness are excluded from exposure hours.
B40: Lost time incidents | C40: Number | E40: 282 | F40: =(E40-G40)/G40 -> 0.04444444444 | G40: 270 | H40: 327 | I40: 274 | J40: *
B41: Exposure hours | C41: Number of hours | E41: =286002006.977301+26660388.7073333 -> 312662395.7 | F41: 0.07399955381 | G41: 291119670 | H41: 268144778 | I41: 236370152 | J41: *
B43: Safety and security management
B45: Indicator | C45: Unit | D45: Target | E45: 2022 | F45: Development since last year | G45: 2021 | H45: 2020 | I45: 2019 | J45: Assured by PwC
B46: Learning Teams completed following a High Potential Incident | C46: Share | D46: 100% by 2023 | E46: 0.83 | F46: - | G46: - | H46: - | I46: - | J46: * | L46: Learning Teams completed following a High Potential Incident is calculated as the share of Learning Teams completed following a High Potential Incident has been recorded. The number of High Potential Incidents and Learning Teams completed during the year is based on reporting by Brands and maintained and quality assured by Maersk’s Group Safety & Security team. A Learning Team is defined as a group of workers brought together to: discuss their work, identify performance influencing conditions that make safe work difficult and specify suggestions for improvement. A High Potential Incident is defined as a safety incident with a potential severity of 4 or higher Maersk’s HSSE Brand-specific risk assessment matrices.

Sheet Sustainable, inclusive trade
B5: Sustainable, inclusive trade
B7: Why it matters We believe global trade can be a powerful enabler for development. But to realise this potential, trade needs to become more accessible, inclusive, trusted, and caring towards our planet and resources. In short: more sustainable. At Maersk, we see it as our purpose to enable sustainable global trade for a growing world. We are working to digitise and decarbonise the world's supply chains – to go all the way to ensure that the growth we facilitate is sustainable. For now, and for the generations that follow us.
B9: Ambition We will support the transformation of global trade into a powerful enabler of sustainable development, as expressed in the UN Sustainable Development Goals.
B11: Resources
B12: Sustainability Report 2022, pp. 8-11
B13: Maersk.com - Sustainable, Inclusive Trade
B14: Trade associations
B16: Priorities and actions
B18: We focus on supporting our customers as they strive to make their own operations and supply chains more sustainable. Customer requirements are incorporated into all our ESG priorities, and we have launched green customer solutions to support their decarbonisation journeys. We also focus on driving accessibility and inclusivity in global trade, so it works better for everyone. Building resilience to supply chain shocks: Our customers are focusing on resiliency, flexibility and connectivity as supply chain shocks become a new normal. As well as developing closer relationships with our customers, we are also delivering new technical solutions to keep their supply chains running end-to-end Accelerating digital transformation Our digital platforms are a key enabler for many customers, supporting seamless access to global trade and improved customer experiences. Our digital interaction with customers across all platforms is growing, especially our industry-first digital solutions such as instant booking confirmation. Green logistics solutions Customers increasingly factor ESG requirements into their logistics decision-making processes, with many operators using ESG supplier evaluation platforms such as EcoVadis. Our green logistics solutions are developed in close and continual dialogue with a broad range of businesses, helping many more deliver on their climate commitments. Solutions for small businesses Small and medium-sized enterprises (SME) are the backbone of many economies, yet are often disproportionately impacted by changing demands for shipping and logistics capacity. Twill, our digital logistics solution for SMEs has helped more than 8,000 operators gain simplified access to global markets, offering direct online booking and shipment monitoring, 24-7 support, and a logistics knowledge hub. Making trade work for women The contribution made by women-owned businesses in driving inclusive economic growth worldwide is recognised by governments and scientists alike. Since 2018, Twill has supported SheTrades, a platform that connects women entrepreneurs all over the world to global markets. Our contributions include a coaching program that pairs Twill or Maersk coaches with women entrepreneurs from developing countries.
B20: Highlights in 2022
B22: Supporting Ukraine | E22: Coaching women-owned SMEs to access global markets
B24: We supported Ukraine by leveraging the weight of out global logistics expertise to provide acute humanitarian relief. We created a dedicated task force to support our Ukrainian colleagues and their families, led by our Crisis Management Team and supported by regional management and local employees. | E24: A tailored coaching programme was launched in 2020, with 25 women entrepreneurs receiving one-on-one coaching from Maersk employees. An impact survey of this programme found that 90% of the women entrepreneurs reported improved business operations to respond to COVID-19 induced challenges, and the women also reported enhancing their exports to new international markets and creation of new jobs.

Sheet Governance >>
B5: Governance KPIs
B7: Corporate governance
B8: Board of Directors | C8: Corporate governance
B9: Chairmanship
B10: Audit Committee
B11: Remuneration Committee
B12: Nomination Committee
B13: Transformation & Innovation Committee
B14: Executive Board (Executive Leadership Team)
B16: Business ethics
B17: Whistleblower cases | C17: Business ethics
B18: Report outcomes and actions
B19: Business ethics training
B20: Operations covered by a risk assessment on compliance and business ethics
B22: Sustainable procurement
B23: Sustainable procurement management | C23: Sustainable procurement
B25: Responsible tax
B26: Total tax for the year | C26: Responsible tax
B28: Citizenship
B29: Priorities and actions | C29: Citizenship
B31: Data ethics
B32: Data ethics training | C32: Data ethics

Sheet Corporate governance
B5: Corporate governance
B7: Ambition Taking a robust and proactive approach to corporate governance secures investor and public confidence in the way we do business, including our approach to sustainability.
B9: Resources
B10: Annual Report 2022
B11: Maersk Corporate Governance
B12: Maersk leadership
B13: Sustainability Report 2022
B15: KPIs
B17: Board of Directors
B19: Indicator | C19: Unit | D19: Target | E19: 2022 | F19: Development since last year | G19: 2021 | H19: 2020 | I19: 2019 | J19: Comments
B20: - Members | C20: Number | E20: 8 | F20: =(E20-G20)/G20 -> -0.2 | G20: 10 | H20: 10 | I20: 10
B21: - Average age | C21: Years | E21: 53.5 | F21: =(E21-G21)/G21 -> -0.02727272727 | G21: 55 | H21: 54 | I21: 52.9
B22: - Average seniority | C22: Years | E22: 5 | F22: =(E22-G22)/G22 -> -0.2857142857 | G22: 7 | H22: 7 | I22: 6.1 | J22: Marika Fredriksson and Julija Voitiekute joined the BoD in March 2022. In the average seniority calculation they are included with one year of seniority.
B23: - Gender - female /total | C23: % | E23: =3/E20*100 -> 37.5 | F23: =E23-G23&" %-points" -> 7.5 %-points | G23: 30 | H23: 30 | I23: 20
B24: - Independence - independent /total | C24: % | E24: 50 | F24: =E24-G24&" %-points" -> -10 %-points | G24: 60 | H24: 67 | I24: 67
B25: - Nationality - Danish /non-Danish split | C25: % | E25: 0.1494252874 | F25: +/- 27 %-points | G25: 40/60 | H25: 50/50 | I25: 60/40
B26: - Meetings | C26: Number | E26: 12 | F26: =(E26-G26)/G26 -> 0.3333333333 | G26: 9 | H26: 8 | I26: 8
B27: - Attendance rate | C27: % | E27: 100 | F27: =E27-G27&" %-points" -> 0 %-points | G27: 100 | H27: 100 | I27: 100
B29: Chairmanship
B31: Indicator | C31: Unit | D31: Target | E31: 2022 | F31: Development since last year | G31: 2021 | H31: 2020 | I31: 2019 | J31: Comments
B32: - Members | C32: Number | E32: 2 | F32: =(E32-G32)/G32 -> 0 | G32: 2 | H32: 2 | I32: 2
B33: - Gender - female /total | C33: % | E33: 0 | F33: =E33-G33&" %-points" -> -50 %-points | G33: 50 | H33: 50 | I33: 50
B34: - Independence - independent /total | C34: % | E34: 50 | F34: 0 %-points | G34: 50 | H34: 50 | I34: 50
B35: - Meetings | C35: Number | E35: 12 | F35: =(E35-G35)/G35 -> 0.5 | G35: 8 | H35: 7 | I35: 8
B36: - Attendance rate | C36: % | E36: 100 | F36: =E36-G36&" %-points" -> 0 %-points | G36: 100 | H36: 100 | I36: 100
B38: Audit Committee
B40: Indicator | C40: Unit | D40: Target | E40: 2022 | F40: Development since last year | G40: 2021 | H40: 2020 | I40: 2019 | J40: Comments
B41: - Members | C41: Number | E41: 4 | F41: =(E41-G41)/G41 -> 0 | G41: 4 | H41: 3 | I41: 3
B42: - Gender - female /total | C42: % | E42: =2/E41*100 -> 50 | F42: =E42-G42&" %-points" -> 25 %-points | G42: 25 | H42: 0 | I42: 0
B43: - Independence - independent /total | C43: % | E43: 75 | F43: -25 %-points | G43: 100 | H43: 100 | I43: 100
B44: - Meetings | C44: Number | E44: 7 | F44: =(E44-G44)/G44 -> 0 | G44: 7 | H44: 6 | I44: 8
B45: - Attendance rate | C45: % | E45: 100 | F45: =E45-G45&" %-points" -> 0 %-points | G45: 100 | H45: 100 | I45: 100
B47: Remuneration Committee
B49: Indicator | C49: Unit | D49: Target | E49: 2022 | F49: Development since last year | G49: 2021 | H49: 2020 | I49: 2019 | J49: Comments
B50: - Members | C50: Number | E50: 3 | F50: =(E50-G50)/G50 -> -0.25 | G50: 4 | H50: 3 | I50: 3
B51: - Gender - female /total | C51: % | E51: =1/E50*100 -> 33.33333333 | F51: =ROUND(E51-G51,0)&" %-points" -> 8 %-points | G51: 25 | H51: 0 | I51: 0
B52: - Independence - independent /total | C52: % | E52: 67 | F52: =E52-G52&" %-points" -> -8 %-points | G52: 75 | H52: 67 | I52: 67
B53: - Meetings | C53: Number | E53: 6 | F53: =(E53-G53)/G53 -> 0.2 | G53: 5 | H53: 4 | I53: 4
B54: - Attendance rate | C54: % | E54: 100 | F54: =E54-G54&" %-points" -> 0 %-points | G54: 100 | H54: 100 | I54: 75
B56: Nomination Committee
B58: Indicator | C58: Unit | D58: Target | E58: 2022 | F58: Development since last year | G58: 2021 | H58: 2020 | I58: 2019 | J58: Comments
B59: - Members | C59: Number | E59: 2 | F59: =(E59-G59)/G59 -> -0.3333333333 | G59: 3 | H59: 3 | I59: 3
B60: - Gender - female /total | C60: % | E60: 0 | F60: =E60-G60&" %-points" -> -33 %-points | G60: 33 | H60: 33 | I60: 33
B61: - Independence - independent /total | C61: % | E61: 50 | F61: 17 %-points | G61: 33 | H61: 33 | I61: 33
B62: - Meetings | C62: Number | E62: 8 | F62: =(E62-G62)/G62 -> 3 | G62: 2 | H62: 5 | I62: 7
B63: - Attendance rate | C63: % | E63: 100 | F63: =E63-G63&" %-points" -> 0 %-points | G63: 100 | H63: 100 | I63: 100
B65: Transformation & Innovation Committee
B67: Indicator | C67: Unit | D67: Target | E67: 2022 | F67: Development since last year | G67: 2021 | H67: 2020 | I67: 2019 | J67: Comments
B68: - Members | C68: Number | E68: 3 | F68: =(E68-G68)/G68 -> -0.4 | G68: 5 | H68: 4 | I68: 4
B69: - Gender - female /total | C69: % | E69: =1/E68*100 -> 33.33333333 | F69: =ROUND(E69-G69,0)&" %-points" -> -7 %-points | G69: 40 | H69: 25 | I69: 0
B70: - Independence - independent /total | C70: % | E70: 67 | F70: =E70-G70&" %-points" -> -13 %-points | G70: 80 | H70: 75 | I70: 75
B71: - Meetings | C71: Number | E71: 5 | F71: =(E71-G71)/G71 -> 0 | G71: 5 | H71: 4 | I71: 4
B72: - Attendance rate | C72: % | E72: 100 | F72: =E72-G72&" %-points" -> 4,2 %-points | G72: 95.8 | H72: 100 | I72: 100
B74: Executive Board (Executive Leadership Team)
B76: Indicator | C76: Unit | D76: Target | E76: 2022 | F76: Development since last year | G76: 2021 | H76: 2020 | I76: 2019 | J76: Comments
B77: - Members | C77: Number | E77: 5 | F77: =(E77-G77)/G77 -> 0 | G77: 5 | H77: 5 | I77: 4
B78: - Average age | C78: Years | E78: 53.8 | F78: =(E78-G78)/G78 -> 0.01893939394 | G78: 52.8 | H78: 51.8 | I78: 50
B79: - Gender - female /total | C79: % | E79: 20 | F79: 0 %-points | G79: 20 | H79: 20 | I79: 30
B80: - Nationality - Danish /non-Danish split | C80: % | E80: 67/33 | F80: 0 %-points | G80: 67/33 | H80: 67/33 | I80: 50/50
B81: - Remuneration (individual) | C81: USD | G81: See Remuneration Report 2022

Sheet Business ethics
B5: Business ethics
B7: Why it matters Corruption is a key compliance risk and it is illigal. It undermines social and economic development, destabilises the business environment and adds to the cost of doing business and participating in global trade. It is against our values and affects external confidence as well as company morale. Noncompliance with bribery and corruption law may lead to legal and reputational risks, extra costs, inefficiencies in our business, fines, imprisonment and debarment from markets.
B9: Ambition With the aspiration to contribute to eliminating corruption in the industries where we are active, through both multistakeholder collaboration and actions in our own operations, our ambition is to stay best-in-class, meeting the highest international standards when operating in jurisdictions with high exposure to corruption, sanctions and export controls.
B11: Resources
B12: Sustainability report 2022, p. 49
B13: Maersk.com - Business Ethics
B14: Code of Conduct
B15: Supplier Code of Conduct
B17: KPIs | L17: ACCOUNTING POLICIES
B19: Whistleblower cases
B21: Indicator | C21: Unit | D21: Target | E21: 2022 | F21: Development since last year | G21: 2021 | H21: 2020 | I21: 2019 | J21: Assured by PwC
B22: Whistleblower cases | C22: Number | E22: 735 | F22: =(E22-G22)/G22 -> 0.1593059937 | G22: 634 | H22: - | I22: - | J22: * | L22: Whistleblower cases is the number of whistleblower cases recorded in Maersk’s whistleblower system during the year. All cases are recorded in Maersk’s whistleblower system irrespective of who makes a misconduct report, or how such a report is received, including via telephone, email, Maersk’s whistleblower system or audits. Whistleblower cases does not include cases reported via other channels such as Maersk’s Ombuds function.
B23: … of which relates to HR-related matters | C23: % | E23: 38 | F23: - | G23: - | H23: - | I23: - | J23: *
B24: … of which relates to business integrity | C24: % | E24: =D33/$E$22*100 -> 5.850340136 | F24: - | G24: - | H24: - | I24: - | J24: *
B25: … of which relates to HSSE | C25: % | E25: 1.088435374 | F25: - | G25: - | H25: - | I25: - | J25: *
B26: … of which relates to fraud | C26: % | E26: 28.57142857 | F26: - | G26: - | H26: - | I26: - | J26: *
B27: … of which relates to IT security | C27: % | E27: 0.6802721088 | F27: - | G27: - | H27: - | I27: - | J27: *
B28: … of which is out of scope | C28: % | E28: 24.62585034 | F28: - | G28: - | H28: - | I28: - | J28: *
B29: Cases closed | C29: Number | E29: 536 | F29: - | G29: - | H29: - | I29: -
C31: 2022 Whistleblower cases | F31: 2022 Report outcomes and actions | G31: Substantiated | H31: Unsubstantiated
C32: HR-related matters | D32: 288 | G32: =SUM(G33:G38) -> 141 | H32: 136
C33: Business integrity | D33: 43 | F33: No action necessary | G33: 14
C34: HSSE | D34: 8 | F34: Policy/process review | G34: 36
C35: Fraud | D35: 210 | F35: Verbal warning | G35: 15
C36: IT Security | D36: 5 | F36: Training/feedback | G36: 26
C37: Out of Scope | D37: 181 | F37: Disciplinary action | G37: 9
F38: Dismissal | G38: 41
F39: Unsubstantiated | G39: 136
B44: Report outcomes and actions
B46: Indicator | C46: Unit | D46: Target | E46: 2022 | F46: Development since last year | G46: 2021 | H46: 2020 | I46: 2019 | J46: Assured by PwC
B47: Cases which was unsubstantiated | C47: % | E47: =136/(136+141)*100 -> 49.09747292 | F47: - | G47: - | H47: - | I47: -
B48: Cases which was substantiated | C48: % | E48: =141/(136+141)*100 -> 50.90252708 | F48: - | G48: - | H48: - | I48: -
B49: … of which no action was necessary | C49: % | E49: =G33/($G$32+$H$32)*100 -> 5.054151625 | F49: - | G49: - | H49: - | I49: -
B50: … of which resulted in policy/process review | C50: % | E50: =G34/($G$32+$H$32)*100 -> 12.99638989 | F50: - | G50: - | H50: - | I50: -
B51: … of which resulted in verbal warning | C51: % | E51: 6 | F51: - | G51: - | H51: - | I51: -
B52: … of which resulted in training/feedback | C52: % | E52: 9.386281588 | F52: - | G52: - | H52: - | I52: -
B53: … of which resulted in disciplinary action | C53: % | E53: 3.249097473 | F53: - | G53: - | H53: - | I53: -
B54: … of which resulted in dismissal | C54: % | E54: 14.80144404 | F54: - | G54: - | H54: - | I54: -
B56: Business ethics training
B58: Indicator | C58: Unit | D58: Target | E58: 2022 | F58: Development since last year | G58: 2021 | H58: 2020 | I58: 2019 | J58: Assured by PwC
B59: Code of conduct training | C59: Completion rate | D59: 100% by 2030 | E59: 83 | F59: - | G59: - | H59: - | I59: - | J59: * | L59: Code of Conduct training is the completion rate of employees in scope for the Maersk Code of Conduct e-learning out of the total employee population in scope. The employees in scope for the e-learning in 2022 is active white-collar Maersk employees. This excludes white-collar employees on long-term leave and employees that have joined Maersk after 31 October in the reporting year. The completion rate is based on registrations in Maersk’s Learning Management system as of 17 January 2023, and completion data up until this date.
B61: Operations covered by a risk assessment on compliance and business ethics
B63: Indicator | C63: Unit | D63: Target | E63: 2022 | F63: Development since last year | G63: 2021 | H63: 2020 | I63: 2019 | J63: Assured by PwC
B64: % of operations covered by a risk assessment on compliance and business ethics risks | C64: % | D64: 100% of operations | E64: 95 | F64: =E64-G64&" %-points" -> 0 %-points | G64: 95 | H64: - | I64: - | J64: * | L64: % of operations covered by a risk assessment on compliance and business ethics risks is the percentage of entities that have completed the risk assessment survey on compliance and business ethics risks during the year. The groupwide risk assessment is carried out every second year with the most recent being completed in 2021 and the next scheduled for 2023. Hence, the coverage for 2022 is the same as in 2021, and work to address identified risks has been embedded and executed on as part of the Compliance Operations programme in 2022. The percentage of operations covered by a risk assessment on compliance and business ethics risks is based on registrations in Maersk’s Global Entity Management System.

Sheet Sustainable procurement
B5: Sustainable procurement
B7: Why it matters Our operations and purchasing decisions have an impact on social, environmental and economic conditions in our industry and global supply chains. We rely on more than 60,000 suppliers, including 5,300 high-risk suppliers, in our global supply chains. Addressing sustainability risks in our supply chain strengthens stakeholders’ trust in our brand and prepares us for regulation of due diligence in supply chains.
B9: Ambition To live up to our commitment to procure sustainably, we will integrate ESG as a strategic topic across supplier lifecycle stages and establish end-to-end visibility on supplier performance through collaboration and engagement, with an ultimate goal of co-development and innovation towards sustainable outcomes.
B11: Resources
B12: Sustainability Report 2022, pp. 50-51
B13: Maersk.com - Sustainable Procurement
B14: Code of Conduct
B15: Supplier Code of Conduct
B17: KPIs | L17: ACCOUNTING POLICIES
B19: Sustainable procurement management
B21: Indicator | C21: Unit | D21: Target | E21: 2022 | F21: Development since last year | G21: 2021 | H21: 2020 | I21: 2019 | J21: Assured by PwC
B22: Supplier committing to Maersk Supplier Code of Conduct (CoC) | C22: % | D22: 100% by 2024 | E22: 96 | F22: - | G22: - | H22: - | I22: - | J22: * | L22: Suppliers committing to Maersk Supplier Code of Conduct (CoC) is the percentage of existing valid contracts with active suppliers which include a sustainable procurement clause, a reference to Supplier CoC in the contract or a CoC acknowledgment document out of the total number of valid supplier contracts. The Suppliers committing to Maersk Supplier CoC is based on registrations in Maersk’s Sustainable Procurement database, DocuSign Insights.
B23: Tier 1 high-risk category/strategic suppliers undergoing ESG assessments | C23: % | D23: >85% by 2024 | E23: 77 | F23: - | G23: - | H23: - | I23: - | J23: * | L23: Tier 1 high-risk category/strategic suppliers undergoing ESG assessments is the share of Tier 1 high-risk and strategic suppliers that have undergone an ESG assessment out of the total number Tier 1 high-risk category and strategic suppliers with valid contracts. The suppliers undergoing ESG assessments are based on registrations in database maintained by the Sustainable Procurement team.
B24: High-risk category/strategic suppliers assessed with Improvement plan successfully closed | C24: % | D24: >80% by 2024 | E24: 69 | F24: - | G24: - | H24: - | I24: - | J24: * | L24: High-risk category/strategic suppliers assessed with improvement plans successfully closed is the percentage of active high-risk category/ strategic suppliers with valid contracts that have successfully closed gaps observed within the agreed timelines through an Improvement plan implementation out of the total high-risk category/strategic suppliers with improvement plans. The suppliers assessed with Improvement Plan successfully closed is based on registrations made in database maintained by the Sustainable Procurement team.
C26: Achieved in 2022 | D26: 2024 target | F26: 2024 target
B27: Supplier committing to Maersk Supplier Code of Conduct (CoC) | C27: 96 | D27: 0 | E27: =100-C27 -> 4 | F27: 100
B28: Tier 1 high-risk category/strategic suppliers undergoing ESG assessments | C28: 77 | D28: =100-F28 -> 15 | E28: =100-C28-D28 -> 8 | F28: 85
B29: High-risk category/strategic suppliers assessed with Improvement plan successfully closed | C29: 69 | D29: =100-F29 -> 20 | E29: =100-C29-D29 -> 11 | F29: 80

Sheet Responsible tax
B5: Responsible tax
B7: Why it matters Well-functioning tax systems, both locally and internationally, help finance education, healthcare, transport, infrastructure and other public services that support the sustainable development of societies, businesses and trade. We recognise the need for companies to support the local economies in which they do business.
B9: Ambition Maersk acts responsibly and with integrity in all tax matters, ensuring full compliance in every jurisdiction across the world. We work closely with tax authorities to ensure that we fully disclose relevant information and pay the correct amount of taxes whilst balancing our obligations towards our shareholders.
B11: Resources
B12: Sustainability Report 2022, p. 53
B13: Maersk.com - Responsible Tax
B14: Tax Report 2022
B16: KPIs | L16: ACCOUNTING POLICIES
B18: Total tax for the year
B20: Indicator | C20: Unit | D20: Target | E20: 2022 | F20: Development since last year | G20: 2021 | H20: 2020 | I20: 2019 | J20: Assured by PwC
B21: Total tax for the year | C21: USD million | E21: 910 | F21: =(E21-G21)/G21 -> 0.3055954089 | G21: 697 | H21: 407 | I21: 458 | J21: * | L21: Please find accounting policies in the Tax Report 2022 here.
B23: The EU maintains a list of non-cooperative tax authorities. In 2022, this list comprises nine countries, of which Maersk has activities in Panama where we paid USD 1.9 million withholding taxes on a profit of USD 6.4 million. In Trinidad & Tobago, we paid USD 53,000 taxes on a loss of USD 23,000. In Bahamas we paid zero taxes on a profit of USD 8.2 million. | L23: APMM activities in the Bahamas consists only of towage operations, carried out by Svitzer Bahamas Ltd, and, in accordance with domestic legislation, no corporate tax is either due or payable there.

Sheet Citizenship
B5: Citizenship
B7: Why it matters Maersk takes active responsibility to support the societies where we operate by partnering with communities and non-profits on social and environmental causes. It is grounded in our Core Values and also an expressed expectation to us from our key stakeholders. We prioritise six causes: Humanitarian relief, empowering for trade, protecting the natural environment and oceans, education, safety, and health (incl. COVID-19).
B9: Ambition We engage in global partnerships and support local communities and initiatives in areas where we can leverage Maersk assets and expertise to make an impact aligned with Maersk’s business and sustainability goals. Donations and social investments are guided by corporate guidelines.
B11: Resources
B12: Sustainability Report 2022, p. 54
B13: Maersk.com - citizenship
B15: Priorities and actions
B18: We take active responsibility for the societies and ecosystems where we operate. This commitment is grounded in our Core Values and the expectations of our key stakeholders. We prioritise the following specific causes to focus our efforts: • Humanitarian relief • Empowering for trade • Protecting the natural environment and oceans • Education and training • Health and safety • COVID-19-related donations (since 2020)
B20: Highlights
B22: Supporting Ukraine | D22: Flood response in Pakistan | F22: Indian Health Impact Award
B24: We supported Ukraine with large-scale in-kind logistics assistance through the Logistics Emergency Team, and donations. | D24: Following unprecedented monsoon floods, we facilitated rapid distribution of 2.7 tonnes of cargo including mosquito nets, tents and hygiene kits. | F24: Maersk received the Indian Health Impact Award for making a meaningful difference in the lives of ship recycling workers

Sheet Data ethics
B5: Data ethics
B7: Why it matters Responsibly managing data from stakeholders, including customers, is a critical issue in today’s societies where the undue influence and abuse of data are growing. Maersk is increasingly reliant on data as a key enabler in more digitally integrated offerings. We manage and control the storage and use of data ethically and proactively, to avoid abuse and privacy infringement. We must continually safeguard our position from legal, business and reputational risks.
B9: Ambition We demonstrate leadership in our ability to ethically manage and use data, with customers trusting that we use their data appropriately, and do not abuse or lose their trust. We prepare Maersk for a future with high ethical standards for data as a differentiator for our customers and support to our employees.
B11: Resources
B12: Sustainability Report 2022, p. 52
B13: Maersk.com - Data ethics
B16: KPIs | L16: ACCOUNTING POLICIES
B18: Data ethics training
B20: Indicator | C20: Unit | D20: Target | E20: 2022 | F20: Development since last year | G20: 2021 | H20: 2020 | I20: 2019 | J20: Assured by PwC
B21: Data ethics training | C21: Completion rate | D21: 100% by 2023 | E21: 67 | F21: - | G21: - | H21: - | I21: - | J21: * | L21: Data ethics training is the completion rate of employees in scope for the data ethics e-learning out of the total employee population in scope. The employees in scope for the e-learning in 2022 is active white-collar Maersk employees. This excludes white-collar employees on long-term leave and employees that have joined Maersk after 31 October in the reporting year. The completion rate is based on registrations in Maersk’s Learning Management system as of 17 January 2023, and completion data up until this date.

Sheet EU Taxonomy >>
B5: EU Taxonomy reporting
B7: Taxonomy summary
B8: EU Taxonomy reporting summary | C8: Taxonomy summary
B9: EU Taxonomy Reporting accounting policies
B11: Revenue
B12: Share of eligible and aligned revenue | C12: Revenue
B14: Capex
B15: Share of eligible and aligned capex | C15: Capex
B17: Opex
B18: Share of eligible and aligned opex | C18: Opex

Sheet Taxonomy summary
B5: EU Taxonomy reporting 2022
B7: EU Taxonomy reporting summary
B9: Segment | E9: Revenue | F9: Capex | G9: Opex
C10: Ocean | D10: Aligned | E10: 0.02 | F10: 0.05 | G10: 0.02
D11: Eligible but not aligned | E11: 0.71 | F11: 0.45 | G11: 0.44
D12: Non-eligible | E12: 0.02 | F12: 0.1 | G12: 0
C13: Logistics & Terminals | D13: Aligned | E13: 0 | F13: 0 | G13: 0
D14: Eligible but not aligned | E14: 0.06 | F14: 0.02 | G14: 0.01
D15: Non-eligible | E15: 0.12 | F15: 0.26 | G15: 0
C16: Terminals | D16: Aligned | E16: 0.01 | F16: 0.01 | G16: 0.08
D17: Eligible but not aligned | E17: 0.03 | F17: 0.06 | G17: 0.34
D18: Non-eligible | E18: 0 | F18: 0 | G18: 0
C19: Towage and Maritime Services | D19: Aligned | E19: 0 | F19: 0.01 | G19: 0
D20: Eligible but not aligned | E20: 0.01 | F20: 0.02 | G20: 0.11
D21: Non-eligible | E21: 0.01 | F21: 0.01 | G21: 0
C22: Consolidated | D22: Aligned | E22: 0.03 | F22: 0.07 | G22: 0.1
D23: Eligible but not aligned | E23: 0.82 | F23: 0.56 | G23: 0.9
D24: Non-eligible | E24: 0.15 | F24: 0.37 | G24: 0
B26: EU Taxonomy Accounting Policies
C29: EU Taxonomy Reporting
C30: For the first time in 2022, Maersk reports EU Taxonomy alignment KPIs in addition to the eligibility KPIs, which was first reported in 2021.
C31: The full reporting can be found in the Sustainability Report 2022 at pp.32 and 61-63
C32: Approach
C33: Maersk’s has in 2022 applied the climate change mitigation technical screening criteria when assessing its economic activities. As the EU Taxonomy regulation matures and evolves, we will change and expand our reporting accordingly, which may also impact the taxonomy KPIs previously reported.
C34: Key changes from 2021
C35: Key changes from 2021 include not applying a linkage principle to allocate Capex and Opex based on the high-level assessment of whether revenue-generating activity codes are eligible or not as we have in 2022 assessed all Capex and Opex amounts separately to improve the reliability of our screening; application of a narrower scope of Opex to only include expenses related to the repair and maintenance of assets in scope and excluding goodwill, customer relationships and terminal and service concession rights from Capex additions. In relation to Opex, we have chosen to only include expenses related to the repair and maintenance of assets that are assessed as taxonomy-eligible and report those as Opex for EU Taxonomy purposes. This is currently the best available Opex number in our financial accounts that is related to the Opex KPI definition in the regulation according to our understanding. Hence, for 2022, total Opex is the same as eligible Opex and consequently, we report 100% eligible Opex and 0% non-eligible Opex for EU Taxonomy purposes.
C36: Accounting policies
C37: The EU Taxonomy reporting is based on the financial accounts and thus includes data from Pilot, Senator and LF Logistics, which is not included in the scope of the Performance data.
C38: The taxonomy-eligibility KPIs have been calculated as: • taxonomy-eligible revenue KPI = Eligible revenue/ Total revenue • taxonomy-eligible Capex KPI (additions) = Eligible Capex/ Total Capex • taxonomy-eligible Opex KPI (repair and maintenance) = Eligible Opex/ Total Opex
C39: Maersk’s process for determining taxonomy-eligible activities (the nominator of the taxonomy eligibility KPIs) has followed a three step approach: 1. Defining the economic activities that Maersk is engaged in within each of the segments across the Group 2. Assessing whether said activities are covered by the economic activity descriptions included in the EU taxonomy Climate Delegated Act 3. Allocating revenue, Capex (additions) and Opex (service and maintenance) according to the company’s overall assessment of whether an economic activity is eligible or not.
C40: Firstly, determination of the share of economic activities in Maersk that are taxonomy-eligible is based on activity codes in the financial consolidation system, which also forms the basis for Maersk’s external financial reporting. As such, activity codes have been defined as an economic activity. Secondly, based on the descriptions of what is registered on Maersk’s activity codes an assessment has been made of whether these activities are covered by the activity descriptions that are included in the EU Taxonomy Climate Delegated Act. Thirdly, depending on whether the registrations are related to assets or processes associated with taxonomy-eligible economic activities, the revenue, Capex and Opex registered on these activity codes is assessed to be eligible or non-eligible and allocated accordingly.
C41: The denominator for the eligibility KPIs has been defined as: • Total revenue as stated in Note 2.1 Segment information of the Annual Report. • Total Capex (additions) as stated in Note 3.1 Intangible assets, Note 3.2 Property, plant and equipment and Note 3.3 Right-of use assets of the Annual Report. • Total Opex related to service and maintenance of eligible and non-eligible assets.
C42: The taxonomy-aligned KPIs have been calculated as: • taxonomy-aligned revenue KPI = aligned revenue / taxonomy eligible revenue • taxonomy-aligned CAPEX KPI (additions) = aligned Capex / taxonomy-eligible CAPEX • taxonomy-aligned OPEX KPI (service and maintenance) = aligned OPEX /eligible OPEX
C43: Maersk’s process for determining taxonomy-aligned activities (the nominator of the taxonomy KPIs) has been based on screening the identified eligible activities within each of the segments against the technical screening criteria for climate change mitigation.
C44: For Ocean, revenue from aligned vessels has been prepared by applying an allocation key to total Ocean revenue. The allocation key is based on transport work from aligned vessels out of the total transport work during the year. Aligned Capex (additions) is 1) Capex additions in relation to existing aligned vessels; 2) expenditures for existing vessels undergone retrofitting that meet the technical screening criteria, and 3) milestone payments for ordered methanol vessels incurred during the year. Aligned Opex is the service and maintenance expenditures in relation to aligned vessels incurred during the year.
C45: For Terminals, revenue from aligned electrified equipment has been prepared by applying an allocation key to total Terminal revenue. The allocation key is based on the carrying amount of aligned electrified equipment out of the total carrying amount of Terminal equipment. Aligned Capex (additions) is the Capex additions in relation to electrified equipment incurred during the year. Aligned Opex, is the service and maintenance expenditures in relation to aligned electrified Terminal equipment incurred during the year.
C46: For Logistics & Services, revenue from aligned activities, which includes electrical trucking and rail freight, has been prepared based on the following approaches: • Trains: Maersk does not currently own or lease trains, which means that there is no related Capex or Opex. The allocation of revenue is based on the share of transportation work from aligned electrical trains out of the total transportation work by train. • Trucks: The preparation of the revenue, Capex and Opex KPIs is based on the separate accounting that is kept for the electric trucks.
C47: For Towage and Marine Services, there are no aligned activities in Svitzer and other marine services, except for certain activities in Maersk Supply Service. Revenue from aligned activities in Maersk Supply Services, which include enabling activities relating to Installation, maintenance and repair of renewable offshore wind parks, has been prepared based on incurred revenue from those projects. Aligned Capex (additions relate to 1) existing service vessels undergone retrofitting that meet the technical screening criteria; 2) expenditures incurred in relation to an offshore electrical charging infrastructure project; and 3) milestone payments for an offshore wind turbine installer vessel.
C49: Do no significant harm (DNSH)
C50: We have assessed and documented compliance with the DNSH criteria relating to the eligible activities in scope for Maersk’s Taxonomy reporting. Since we only screen for substantial contribution for ‘Climate change mitigation’, we have screened our eligible activities for DNSH compliance with ‘Climate change adaptation’, ‘Sustainable use and protection of water and marine resources’, ‘Transition to a circular economy’, ‘Pollution prevention and control’ and ‘Protection and restoration of biodiversity and ecosystems’. Only when we have been able to document compliance with all applicable DNSH criteria, we have assessed an activity to be aligned. Consequently, if an activity fail to meet one or more of the DNSH criteria, we have assessed that activity to be eligible but not aligned.
C52: Minimum safeguards
C53: Maersk and its subsidiaries are committed to conducting business in a responsible and upright manner and to respecting human rights across our activities, in line with the Maersk Values. We endorse the principles of the UN Guiding Principles on Business and Human Rights (UNGPs) and the OECD Guidelines for Multinational Enterprises. We commit to respecting all internationally recognised human rights referenced in the International Bill of Human Rights and the ILO Declaration on Fundamental Principles and Rights at Work. These rights include core labour rights such as the rights of freedom of association and collective bargaining, the rights to not be subjected to forced labour, child labour or discrimination in respect of employment and occupation, and standards on working hours and the safety & health of workers. We implement our commitment to these via our Code of Conduct, and other internal policies and procedures. Maersk’s compliance with the Minimum Safeguards as outlined in the EU Taxonomy regulation, has been performed at a Group level and is based on the following assessment:
C54: • Human rights: The company is committed to conducting human rights due diligence (HRDD) as outlined in the UN Guiding Principles (UNGPs) and OECD Guidelines for Multinational Enterprises (MNEs). Please refer to Maersk’s Human Rights Policy here. Maersk continuously identifies and assesses human rights risks via relevant due diligence processes. In 2021, the company conducted a corporate-wide human rights assessment. Please refer to the Sustainability Report 2021 and the Human rights chapter in this report for more information. Further, there is no indication that Maersk does not adequately implement HRDD resulting in human rights abuses, as the company has not been convicted in court cases on labour law or on human rights. Moreover, Maersk is committed to engaging with stakeholders through the mechanisms stated in the EU Taxonomy regulation, including OECD National Contact Points or the Business and Human Rights Resource Centre (BHRRC) and there are no signals that Maersk does not engage.
C55: • Corruption: Maersk has in place an anti-corruption policy and adequate internal controls, ethics and compliance programmes and measures for preventing and detecting bribery. Please refer to the Governance and Business ethics chapters of this report. In addition, none of Maersk’s senior management, including the senior management of its subsidiaries, have been convicted of corruption.
C56: • Taxation: Tax is treated as an important topic of oversight, anchored with the highest governing bodies in Maersk, and the company has put in place adequate tax risk management strategies and processes as outlined in OECD MNE Guidelines covering tax. Furthermore, the company has not been found guilty of tax evasion.
C57: • Fair competition: The company promotes employee awareness of the importance of compliance with all applicable competition laws and regulations and trains senior management in relation to competition issues. Compliance with competition laws and regulations is a core part of Maersk’s Code of Conduct, which Maersk employees are training in every year. Moreover, none of Maersk’s senior management members, including the senior.

Sheet Revenue
B5: Revenue
B7: Introduction The results of Maersk’s taxonomy screening for 2022 confirm that the company has significant opportunity to have a substantial contribution towards climate change mitigation, and that it is in its early stages of the journey to decarbonise its end-to-end value chain. Hence, we see a high share of eligible revenue, Capex and Opex but a significantly lower share of revenue, Capex and Opex related to taxonomy-aligned activities. Over the coming years, we expect to see a low and gradual increase of taxonomy-aligned revenue and a bigger and continued steady increase in the taxonomy-aligned Capex in line with our decarbonisation strategy.
B9: Ocean The eligible activities in Ocean mainly relate to ocean container transport and associated services. The aligned revenue in Ocean is related to 22 existing vessels that meet the technical screening criteria. The share of non-eligible activities in Ocean mainly relates to investments in and repair/maintenance of containers and activities in Maersk Oil Trading.
B11: Logistics and Services The eligible activities in Logistics and Services relate to road and rail freight. The aligned revenue is related to electrical trucking and rail freight. The non-eligible activities in Logistics and Services mainly relate to airfreight, warehousing and various services within supply chain management and e-commerce.
B13: Terminals The eligible activities in Terminals mainly relate to port infrastructure supporting ocean-based transportation. The aligned revenue is linked to electrical equipment that are used to operate the terminals, including. cranes, trucks and lifts etc. The non-eligible activities in Terminals relate to terminal concession rights and operational software.
B15: Towage and Marine Services The eligible activities in Towage and Maritime Services mainly relate to Maersk Supply Services’ and Svitzer’s operation of service vessels and vessels required for port operations and auxiliary activities. For Svitzer, there are currently no aligned activities. For Maersk Supply Services, revenue from aligned activities include enabling activities relating to installation, maintenance, and repair of renewable offshore wind parks.
B17: Resources
B18: Sustainability Report 2022, p. 61
B20: KPIs
B22: Proportion of revenue from products or services associated with Taxonomy-aligned economic activities 2022
G24: Substantial contribution | M24: DNSH
B25: Economic activities | C25: NACE codes | D25: Absolute revenue (mio $) | E25: Proportion of revenue (%) | F25: Proportion aligned revenue of eligible revenue (%) | G25: Climate change mitigation (%) | H25: Climate change adaptation (%) | I25: Water and marine resources (%) | J25: Circular economy (%) | K25: Pollution (%) | L25: Biodiversity and ecosystems (%) | M25: Climate change mitigation (Y/N) | N25: Climate change adaptation (Y/N) | O25: Water and marine resources (Y/N) | P25: Circular economy (Y/N) | Q25: Pollution (Y/N) | R25: Biodiversity and ecosystems (Y/N) | S25: Do No Significant Harm (Y/N) | T25: Minimum safeguards (Y/N) | U25: Taxonomy-aligned proportion of revenue 2022 (%) | V25: Taxonomy-aligned proportion of revenue 2021 (%) | W25: Enabling activity (Y/N) | X25: Transitional activity (Y/N)
B26: A. Taxonomy-eligible activities
B27: A.1 Environmentally sustainable activities (Taxonomy-aligned)
B28: 6.2. Freight rail transport | C28: H49.20 | D28: 33 | E28: 0.0004 | F28: 0.0005 | G28: 100 | H28: 0 | I28: 0 | J28: 0 | K28: 0 | L28: 0 | M28: N/A | N28: Y | O28: Y | P28: Y | Q28: Y | R28: Y | S28: Y | T28: Y | U28: 0 | V28: N/A | W28: N | X28: N
B29: 6.6. Freight transport services by road | C29: H49.4.1, H53.20, N77.12 | D29: 3 | E29: 4e-05 | F29: 4.3e-05 | G29: 100 | H29: 0 | I29: 0 | J29: 0 | K29: 0 | L29: 0 | M29: N/A | N29: Y | O29: Y | P29: Y | Q29: Y | R29: Y | S29: Y | T29: Y | U29: 0 | V29: N/A | W29: N | X29: N
B30: 6.10 Sea and coastal freight water transport | C30: H50.2, H52.22, N77.34 | D30: 1560 | E30: 0.01913 | F30: 0.022471 | G30: 100 | H30: 0 | I30: 0 | J30: 0 | K30: 0 | L30: 0 | M30: N/A | N30: Y | O30: Y | P30: Y | Q30: Y | R30: Y | S30: Y | T30: Y | U30: 0.019 | V30: N/A | W30: N | X30: Y
B31: 6.16 Infrastructure enabling low carbon water transport | C31: F42.91, F71.1, F71.20 | D31: 1190 | E31: 0.0146 | F31: 0.017141 | G31: 100 | H31: 0 | I31: 0 | J31: 0 | K31: 0 | L31: 0 | M31: N/A | N31: Y | O31: Y | P31: Y | Q31: Y | R31: Y | S31: Y | T31: Y | U31: 0.015 | V31: N/A | W31: Y | X31: N
B32: 7.6 Installation, maintenance and repair of renewable energy technologies | C32: F42, F43, M71, C28 | D32: 6 | E32: 7e-05 | F32: 8.6e-05 | G32: 100 | H32: 0 | I32: 0 | J32: 0 | K32: 0 | L32: 0 | M32: N/A | N32: Y | O32: Y | P32: Y | Q32: Y | R32: Y | S32: Y | T32: Y | U32: 0 | V32: N/A | W32: Y | X32: N
B33: Revenue of Taxonomy-aligned activities | D33: =+D28+D29+D30+D31+D32 -> 2792 | E33: =+D33/$D$44 -> 0.0342454832 | F33: =SUM(F28:F32) -> 0.040241 | G33: 100 | H33: 0 | I33: 0 | J33: 0 | K33: 0 | L33: 0 | M33: N/A | N33: Y | O33: Y | P33: Y | Q33: Y | R33: Y | S33: Y | T33: Y | U33: =+D33/$D$44 -> 0.0342454832 | V33: N/A | W33: 0.015 | X33: 0.019
B34: A.2 Taxonomy-Eligible but not aligned activities
B35: 6.2. Freight rail transport | C35: H49.20 | D35: 38 | E35: 0.001
B36: 6.6. Freight transport services by road | C36: H49.4.1, H53.20, N77.12 | D36: 5000 | E36: 0.0613
B37: 6.10 Sea and coastal freight water transport | C37: H50.2, H52.22, N77.34 | D37: 59347 | E37: 0.7279
B38: 6.16 Infrastructure enabling low carbon water transport | C38: F42.91, F71.1, F71.20 | D38: 2246 | E38: 0.0275
B39: 7.6 Installation, maintenance and repair of renewable energy technologies | C39: F42, F43, M71, C28 | D39: 0 | E39: 0
B40: Revenue of Taxonomy eligible but not aligned activities | D40: =+D35+D36+D37+D38+D39 -> 66631 | E40: =(+D40/$D$44)+0.001 -> 0.8182674754
B41: Total Aligned and eligible activities (A.1 + A.2) | D41: =+D33+D40 -> 69423 | E41: =+D41/$D$44 -> 0.8515129586
B42: B. Taxonomy Non-eligible activities
B43: B Revenue from non-eligible activities | D43: 12106 | E43: =+D43/D44 -> 0.1484870414
B44: Total A+B | D44: =+D41+D43 -> 81529 | E44: =+E41+E43 -> 1

Sheet Capex
B5: Capital expenditures (Capex)
B7: Introduction The results of Maersk’s taxonomy screening for 2022 confirm that the company has significant opportunity to have a substantial contribution towards climate change mitigation, and that it is in its early stages of the journey to decarbonise its end-to-end value chain. Hence, we see a high share of eligible revenue, Capex and Opex but a significantly lower share of revenue, Capex and Opex related to taxonomy-aligned activities. Over the coming years, we expect to see a low and gradual increase of taxonomy-aligned revenue and a bigger and continued steady increase in the taxonomy-aligned Capex in line with our decarbonisation strategy.
B9: Ocean The eligible activities in Ocean mainly relate to ocean container transport and associated services. The aligned Capex relates to 1) capital expenses in relation to existing aligned vessels; 2) expenditures for existing vessels that have undergone retrofitting that meets the technical screening criteria, and 3) milestone payments for the ordered green methanol vessels incurred during the year. The share of non-eligible activities in Ocean mainly relates to investments in and repair/maintenance of containers and activities in Maersk Oil Trading.
B11: Logistics and Services The eligible activities in Logistics and Services relate to road and rail freight. Maersk does not own any trains, and consequently the aligned Capex in this segment is related to the electrical trucks that came into operation in 2022. The non-eligible activities in Logistics and Services mainly relate to airfreight, warehousing and various services within supply chain management and e-commerce.
B13: Terminals The eligible activities in Terminals mainly relate to port infrastructure supporting ocean-based transportation. The aligned Capex is linked to electrical equipment that are used to operate the terminals, including. cranes, trucks and lifts etc. The non-eligible activities in Terminals relate to terminal concession rights and operational software.
B15: Towage and Marine Services The eligible activities in Towage and Maritime Services mainly relate to Maersk Supply Services’ and Svitzer’s operation of service vessels and vessels required for port operations and auxiliary activities. For Svitzer, there are currently no aligned activities. For Maersk Supply Services, aligned Capex relates to 1) existing service vessels that have undergone retrofitting meeting the technical screening criteria; 2) expenditures incurred in relation to an offshore electrical charging infrastructure project; and 3) milestone payments for an offshore wind installer vessel.
B17: Resources
B18: Sustainability Report 2022, p. 62
B20: KPIs
B22: Proportion of Capex from products or services associated with Taxonomy-aligned economic activities 2022
G24: Substantial contribution | L24: DNSH
B25: Economic activities | C25: NACE codes | D25: Absolute capex (mio $) | E25: Proportion of capex (%) | F25: Proportion aligned Capex of eligible Capex (%) | G25: Climate change adaptation (%) | H25: Water and marine resources (%) | I25: Circular economy (%) | J25: Pollution (%) | K25: Biodiversity and ecosystems (%) | L25: Climate change mitigation (Y/N) | M25: Climate change mitigation (Y/N) | N25: Climate change adaptation (Y/N) | O25: Water and marine resources (Y/N) | P25: Circular economy (Y/N) | Q25: Pollution (Y/N) | R25: Biodiversity and ecosystems (Y/N) | S25: Minimum safeguards (Y/N) | T25: Taxonomy-aligned proportion of capex 2022 (%) | U25: Taxonomy-aligned proportion of capex 2021 (%) | V25: Enabling activity (Y/N) | W25: Transitional activity (Y/N)
B26: A. Taxonomy-eligible activities
B27: A.1 Environmentally sustainable activities (Taxonomy-aligned)
B28: 6.2. Freight rail transport | C28: H49.20 | D28: 0 | E28: 0 | F28: 0 | G28: 100 | H28: 0 | I28: 0 | J28: 0 | K28: 0 | L28: N/A | M28: Y | N28: Y | O28: Y | P28: Y | Q28: Y | R28: Y | S28: Y | T28: 0 | U28: N/A | V28: N | W28: N
B29: 6.6. Freight transport services by road | C29: H49.4.1, H53.20, N77.12 | D29: 7 | E29: 0 | F29: 0.00123 | G29: 100 | H29: 0 | I29: 0 | J29: 0 | K29: 0 | L29: N/A | M29: Y | N29: Y | O29: Y | P29: Y | Q29: Y | R29: Y | S29: Y | T29: 0 | U29: N/A | V29: N | W29: N
B30: 6.10 Sea and coastal freight water transport | C30: H50.2, H52.22, N77.34 | D30: 412 | E30: 0.04592 | F30: 0.07237 | G30: 100 | H30: 0 | I30: 0 | J30: 0 | K30: 0 | L30: N/A | M30: Y | N30: Y | O30: Y | P30: Y | Q30: Y | R30: Y | S30: Y | T30: 0.04592 | U30: N/A | V30: N | W30: Y
B31: 6.12 Retrofitting of sea and coastal freight and passenger water transport | C31: H50.2 | D31: 24 | E31: 0.00267 | F31: 0.00422 | G31: 100 | H31: 0 | I31: 0 | J31: 0 | K31: 0 | L31: N/A | M31: Y | N31: Y | O31: Y | P31: Y | Q31: Y | R31: Y | S31: Y | T31: 0.00267 | U31: N/A | V31: Y | W31: N
B32: 6.16 Infrastructure enabling low carbon water transport | C32: F42.91, F71.1, F71.20 | D32: 106 | E32: 0.01181 | F32: 0.01862 | G32: 100 | H32: 0 | I32: 0 | J32: 0 | K32: 0 | L32: N/A | M32: Y | N32: Y | O32: Y | P32: Y | Q32: Y | R32: Y | S32: Y | T32: 0.01187 | U32: N/A | V32: Y | W32: N
B33: 7.6 Installation, maintenance and repair of renewable energy technologies | C33: F42, F43, M71, C28 | D33: 89 | E33: 0.00992 | F33: 0.01563 | G33: 100 | H33: 0 | I33: 0 | J33: 0 | K33: 0 | L33: N/A | M33: Y | N33: Y | O33: Y | P33: Y | Q33: Y | R33: Y | S33: Y | T33: 0.00992 | U33: N/A | V33: Y | W33: N
B34: Capex of Taxonomy aligned activities* | D34: =SUM(D28:D33) -> 638 | E34: =+D34/$D$46 -> 0.07111012037 | F34: =+D34/$D$43 -> 0.1120674513 | G34: 100 | H34: 0 | L34: N/A | M34: Y | N34: Y | O34: Y | P34: Y | Q34: Y | R34: Y | S34: Y | T34: 0.071 | U34: N/A | V34: 0.025 | W34: 0.046
B35: A.2 Taxonomy-Eligible but not aligned activities
B36: 6.2. Freight rail transport | C36: H49.20 | D36: 0 | E36: 0
B37: 6.6. Freight transport services by road | C37: H49.4.1, H53.20, N77.12 | D37: 193 | E37: 0.0215113687
B38: 6.10 Sea and coastal freight water transport | C38: H50.2, H52.22, N77.34 | D38: 3435 | E38: 0.3828577798
B39: 6.12 Retrofitting of sea and coastal freight and passenger water transport | C39: H50.2 | D39: 844 | E39: 0.09407044137
B40: 6.16 Infrastructure enabling low carbon water transport | C40: F42, F43, M71, C28 | D40: 583 | E40: 0.06497993758
B41: 7.6 Installation, maintenance and repair of renewable energy technologies | C41: F42, F43, M71, C28 | D41: 0 | E41: 0
B42: Capex of Taxonomy eligible but not aligned activities | D42: =+D36+D37+D38+D39+D40+D41 -> 5055 | E42: 56.4% | U42: N/A
B43: Total Aligned and eligible activities (A.1 + A.2) | D43: =+D34+D42 -> 5693 | E43: 0.635 | U43: N/A
B44: B. Taxonomy Non-eligible activities
B45: B Capex from non-eligible activities | D45: 3279 | E45: 0.365
B46: Total A+B | D46: 8972 | E46: 1
B48: *In November 2021. Maersk issued green bonds under our Green Finance Framework. The use of proceeds from the green bonds are used to finance the ordered green methanol enabled vessels. The use of proceeds have been allocated in 2021 and 2022. The allocation report for 2022 will be available in Q1 2023. Allocation reports, can be found here: https://investor.maersk.com/green-finance.

Sheet Opex
B5: Operational expenditures (Opex)
B7: Introduction The results of Maersk’s taxonomy screening for 2022 confirm that the company has significant opportunity to have a substantial contribution towards climate change mitigation, and that it is in its early stages of the journey to decarbonise its end-to-end value chain. Hence, we see a high share of eligible revenue, Capex and Opex but a significantly lower share of revenue, Capex and Opex related to taxonomy-aligned activities. Over the coming years, we expect to see a low and gradual increase of taxonomy-aligned revenue and a bigger and continued steady increase in the taxonomy-aligned Capex in line with our decarbonisation strategy.
B9: Ocean The eligible activities in Ocean mainly relate to ocean container transport and associated services. Aligned Opex is the repair and maintenance expenditures in relation to aligned vessels incurred during the year. The share of non-eligible activities in Ocean mainly relates to investments in and repair/maintenance of containers and activities in Maersk Oil Trading.
B11: Logistics and Services The eligible activities in Logistics and Services relate to road and rail freight. Maersk does not own any trains, and consequently the aligned Opex in this segment is related to the electrical trucks that came into operation in 2022. The non-eligible activities in Logistics and Services mainly relate to airfreight, warehousing and various services within supply chain management and e-commerce.
B13: Terminals The eligible activities in Terminals mainly relate to port infrastructure supporting ocean-based transportation. The aligned Opex is linked to electrical equipment that are used to operate the terminals, including. cranes, trucks and lifts etc. The non-eligible activities in Terminals relate to terminal concession rights and operational software.
B15: Towage and Marine Services The eligible activities in Towage and Maritime Services mainly relate to Maersk Supply Services’ and Svitzer’s operation of service vessels and vessels required for port operations and auxiliary activities. No are currently no aligned Opex related to Towage and Marine Services.
B17: Resources
B18: Sustainability Report 2022, p. 63
B20: KPIs
B22: Proportion of Opex from products or services associated with Taxonomy-aligned economic activities 2022
F24: Substantial contribution | L24: DNSH
B25: Economic activities | C25: NACE codes | D25: Absolute Opex (mio $) | E25: Proportion of Opex (%) | F25: Climate change mitigation (%) | G25: Climate change adaptation (%) | H25: Water and marine resources (%) | I25: Circular economy (%) | J25: Pollution (%) | K25: Biodiversity and ecosystems (%) | L25: Climate change mitigation (Y/N) | M25: Climate change adaptation (Y/N) | N25: Water and marine resources (Y/N) | O25: Circular economy (Y/N) | P25: Pollution (Y/N) | Q25: Biodiversity and ecosystems (Y/N) | R25: Minimum safeguards (Y/N) | S25: Taxonomy-aligned proportion of Opex 2022 (%) | T25: Taxonomy-aligned proportion of Opex 2021 (%) | U25: Enabling activity (Y/N) | V25: Transitional activity (Y/N)
B26: A. Taxonomy-eligible activities
B27: A.1 Environmentally sustainable activities (Taxonomy-aligned)
B28: 6.2. Freight rail transport | C28: H49.20 | D28: 0 | E28: 0 | F28: 100 | G28: 0 | H28: 0 | I28: 0 | J28: 0 | K28: 0 | L28: Y | M28: Y | N28: Y | O28: Y | P28: Y | Q28: Y | S28: 0 | T28: N/A | U28: N | V28: N
B29: 6.6. Freight transport services by road | C29: H49.4.1, H53.20, N77.12 | D29: 0 | E29: 0 | F29: 100 | G29: 0 | H29: 0 | I29: 0 | J29: 0 | K29: 0 | L29: Y | M29: Y | N29: Y | O29: Y | P29: Y | Q29: Y | S29: 0 | T29: N/A | U29: N | V29: N
B30: 6.10 Sea and coastal freight water transport | C30: H50.2, H52.22, N77.34 | D30: 12 | E30: 0.02127659574 | F30: 100 | G30: 0 | H30: 0 | I30: 0 | J30: 0 | K30: 0 | L30: Y | M30: Y | N30: Y | O30: Y | P30: Y | Q30: Y | S30: 0.021 | T30: N/A | U30: N | V30: Y
B31: 6.12 Retrofitting of sea and coastal freight and passenger water transport | C31: H50.2 | D31: 0 | E31: 0 | F31: 100 | G31: 0 | H31: 0 | I31: 0 | J31: 0 | K31: 0 | L31: Y | M31: Y | N31: Y | O31: Y | P31: Y | Q31: Y | S31: 0 | T31: N/A | U31: Y | V31: N
B32: 6.16 Infrastructure enabling low carbon water transport | C32: F42.91, F71.1, F71.20 | D32: 44 | E32: 0.0780141844 | F32: 100 | G32: 0 | H32: 0 | I32: 0 | J32: 0 | K32: 0 | L32: Y | M32: Y | N32: Y | O32: Y | P32: Y | Q32: Y | S32: 0.078 | T32: N/A | U32: Y | V32: N
B33: 7.6 Installation, maintenance and repair of renewable energy technologies | C33: F42, F43, M71, C28 | D33: 1 | E33: =+D33/D46 -> 0.001773049645 | F33: 100 | G33: 0 | H33: 0 | I33: 0 | J33: 0 | K33: 0 | L33: Y | M33: Y | N33: Y | O33: Y | P33: Y | Q33: Y | S33: =E33 -> 0.001773049645 | T33: N/A | U33: Y | V33: N
B34: Opex of Taxonomy aligned activities | D34: 57 | E34: 0.101 | F34: 100 | G34: 0 | H34: 0 | I34: 0 | J34: 0 | K34: 0 | L34: Y | M34: Y | N34: Y | O34: Y | P34: Y | Q34: Y | S34: 0.101 | T34: N/A | U34: 0.08 | V34: 0.021
B35: A.2 Taxonomy-Eligible but not aligned activities
B36: 6.2. Freight rail transport | C36: H49.20 | D36: 0 | E36: 0
B37: 6.6. Freight transport services by road | C37: H49.4.1, H53.20, N77.12 | D37: 5 | E37: 0.008865248227
B38: 6.10 Sea and coastal freight water transport | C38: H50.2, H52.22, N77.34 | D38: 310 | E38: 0.5496453901
B39: 6.12 Retrofitting of sea and coastal freight and passenger water transport | C39: H50.2 | D39: 0 | E39: 0
B40: 6.16 Infrastructure enabling low carbon water transport | C40: F42.91, F71.1, F71.20 | D40: 192 | E40: 0.3404255319
B41: 7.6 Installation, maintenance and repair of renewable energy technologies | C41: F42, F43, M71, C28 | D41: 0 | E41: 0
B42: Opex of Taxonomy eligible but not aligned activities | D42: =D36+D37+D38+D39+D40 -> 507 | E42: 0.899 | T42: N/A
B43: Opex of Taxonomy aligned activities* | D43: =+D34+D42 -> 564 | E43: 1 | T43: N/A
B44: B. Taxonomy Non-eligible activities
B45: B Opex from non-eligible activities* | D45: 0 | E45: =+D45/$D$46 -> 0
B46: Total A+B | D46: 564 | E46: =+E43+E45 -> 1
B48: *The scope of Opex is defined as the Repair and Maintenance Opex related to Maersk's taxonomy eligible activities. Hence, total Opex is the same as eligible Opex. Consequently, we have 100% eligible Opex and 0% non-eligible Opex.

Sheet Standards & ratings
B5: Reporting standards, frameworks and ratings
B7: SASB
B8: Greenhouse Gas Emissions | C8: SASB
B9: Air quality
B10: Ecological impacts
B11: Employee health & safety
B12: Business ethics
B13: Accident & safety management
B14: Activity metrics
B16: TCFD
B17: Governance | C17: TCFD
B18: Strategy
B19: Risk management
B20: Metrics & targets
B22: Ratings
B23: CDP | C23: Ratings
B24: EcoVadis
B25: MSCI
B26: S&P Dow Jones
B27: Sustainalytics
B28: CA100+ Net-Zero Company Benchmark

Sheet SASB
B5: SASB Marine Transportation Industry Standard – Disclosures & Accounting Metrics
B7: Maersk's SASB Reporting Maersk has reported against the SASB Marine Transportation Industry Standard since 2019. Find below our SASB reporting for 2022.
B9: Resources
B10: Sustainability Report 2022
B12: KPIs | J12: ACCOUNTING POLICIES
B14: Greenhouse Gas Emissions
C16: Unit | D16: Reference | E16: 2022 | F16: Development from previous year | G16: 2021 | H16: 2020
B17: Gross global Scope 1 emissions | C17: Metric tons (t) CO₂ eq. | D17: TR-MT-110a.1 | E17: 15848533.81 | F17: =(E17-G17)/G17 -> -0.11507433 | G17: 17909452 | H17: 18843928 | J17: Scope limited to operations of vessels for which Maersk holds the Document of Compliance (DOC).This includes bareboat charters where Maersk, Alianca or Maersk Line Ltd. holds the DOC. Note that the scope of SASB disclosures differs from other ESG disclosures and data in this report, as well as from the Maersk Sustainability Report 2021. Because the SASB Marine Transportation Industry Standard is industry-specific, the disclosures exclude Maersk segments outside the marine transportation industry, such Terminals & Towage, Logistics & Services, and Manufacturing & Others, which are included in our Sustainability and ESG reporting.
B18: Long-term and short-term strategy or plan to manage Scope 1 emissions, emissions reduction targets, and an analysis of performance against those targets | D18: TR-MT-110a.2 | E18: See pp. 21-33 in SR22 | F18: - | G18: See pp. 18-28 in SR21 | H18: See pp. 16-22 in SR20
B19: (1) Total energy consumed | C19: Gigajoules (GJ) | D19: TR-MT-110a.3 | E19: 213220741.7 | F19: =(E19-G19)/G19 -> -0.1077679771 | G19: 238974545 | H19: 244483349
B20: (2) percentage heavy fuel oil | C20: Percentage (%) | D20: TR-MT-110a.3 | E20: 98 | F20: =ROUND(E20-G20,2)&" %-points" -> 9 %-points | G20: 89 | H20: 83
B21: (3) percentage renewable (only considering biofuel) | C21: Percentage (%) | D21: TR-MT-110a.3 | E21: 3 | F21: =ROUND(E21-G21,2)&" %-points" -> 2 %-points | G21: 1 | H21: 5
B22: Average Energy Efficiency Design Index (EEDI) for new ships | C22: Grams of CO₂ per ton-nautical mile | D22: TR-MT-110a.4 | E22: * | F22: - | G22: 15.64 | H22: * | J22: *No new vessels were delivered in 2020 and 2022. In 2021, five new ships entered into Maersk's fleet in 2021 all of which had a capacity between 2,200-2,300 TEU.
B24: Air quality
B26: Indicator | C26: Unit | D26: Reference | E26: 2022 | F26: Development from previous year | G26: 2021 | H26: 2020
B27: Air emissions of the following pollutants: | J27: Scope limited to operations of vessels for which Maersk holds the Document of Compliance (DOC).This includes bareboat charters where Maersk, Alianca or Maersk Line Ltd. holds the DOC. Note that the scope of SASB disclosures differs from other ESG disclosures and data in this report, as well as from the Maersk Sustainability Report 2021. Because the SASB Marine Transportation Industry Standard is industry-specific, the disclosures exclude Maersk segments outside the marine transportation industry, such Terminals & Towage, Logistics & Services, and Manufacturing & Others, which are included in our Sustainability and ESG reporting.
B28: (1) NOx (excluding N2O), | C28: Metric tons (t) | D28: TR-MT-120a.1 | E28: 321277.51 | F28: =(E28-G28)/G28 -> -0.2922592235 | G28: 453948 | H28: 476686
B29: (2) SOx | C29: Metric tons (t) | D29: TR-MT-120a.1 | E29: 49876.63 | F29: =(E29-G29)/G29 -> -0.04569731178 | G29: 52265 | H29: 51114
B30: (3) particulate matter (PM10) | C30: Metric tons (t) | D30: TR-MT-120a.1 | E30: 25321.27 | G30: - | H30: -
B32: Ecological impacts
C34: Unit | D34: Reference | E34: 2022 | F34: Development from previous year | G34: 2021 | H34: 2020
B35: Shipping duration in marine protected areas or areas of protected conservation status | C35: Number of travel days | D35: TR-MT-160a.1 | E35: * | G35: * | H35: * | J35: Data unavailable. Assessment of feasibility of disclosure is ongoing
B36: Percentage of fleet implementing ballast water: | J36: Scope limited to operations of vessels for which Maersk holds the Document of Compliance (DOC).This includes bareboat charters where Maersk, Alianca or Maersk Line Ltd. holds the DOC. Note that the scope of SASB disclosures differs from other ESG disclosures and data in this report, as well as from the Maersk Sustainability Report 2021. Because the SASB Marine Transportation Industry Standard is industry-specific, the disclosures exclude Maersk segments outside the marine transportation industry, such Terminals & Towage, Logistics & Services, and Manufacturing & Others, which are included in our Sustainability and ESG reporting
B37: (1) exchange | C37: Percentage (%) | D37: TR-MT-160a.2 | E37: 30 | F37: =ROUND(E37-G37,2)&" %-points" -> -16 %-points | G37: 46 | H37: 74
B38: (2) treatment | C38: Percentage (%) | D38: TR-MT-160a.2 | E38: 70 | F38: =ROUND(E38-G38,2)&" %-points" -> 16 %-points | G38: 54 | H38: 26
B39: (1) Number of spills and releases to the environment | C39: Number of spills | D39: TR-MT-160a.3 | E39: 5 | F39: =(E39-G39)/G39 -> -0.1666666667 | G39: 6 | H39: 6
B40: (2) aggregate volume of spills and releases to the environment | C40: Cubic meters (m³) | D40: TR-MT-160a.3 | E40: 0.18 | F40: =(E40-G40)/G40 -> -0.8 | G40: 0.9 | H40: 0.4
B42: Employee health & safety
B44: Indicator | C44: Unit | D44: Reference | E44: 2022 | F44: Development from previous year | G44: 2021 | H44: 2020
B45: Lost time incident rate (LTIR) | C45: Rate | D45: TR-MT-320a.1 | E45: 1.02 | F45: =(E45-G45)/G45 -> 0.275 | G45: 0.8 | H45: 0.77 | J45: Scope limited to operations of vessels for which Maersk holds the Document of Compliance (DOC).This includes bareboat charters where Maersk, Alianca or Maersk Line Ltd. holds the DOC. Note that the scope of SASB disclosures differs from other ESG disclosures and data in this report, as well as from the Maersk Sustainability Report 2021. Because the SASB Marine Transportation Industry Standard is industry-specific, the disclosures exclude Maersk segments outside the marine transportation industry, such Terminals & Towage, Logistics & Services, and Manufacturing & Others, which are included in our Sustainability and ESG reporting.
B47: Business ethics
B49: Indicator | C49: Unit | D49: Reference | E49: 2022 | F49: Development from previous year | G49: 2021 | H49: 2020
B50: Number of calls at ports in countries that have the 20 lowest rankings in Transparency International’s Corruption Perception Index | C50: Number | D50: TR-MT-510a.1 | E50: 252 | F50: =(E50-G50)/G50 -> 0.8529411765 | G50: 136 | H50: 202 | J50: Scope limited to operations of vessels for which Maersk holds the Document of Compliance (DOC).This includes bareboat charters where Maersk, Alianca or Maersk Line Ltd. holds the DOC. Note that the scope of SASB disclosures differs from other ESG disclosures and data in this report, as well as from the Maersk Sustainability Report 2021. Because the SASB Marine Transportation Industry Standard is industry-specific, the disclosures exclude Maersk segments outside the marine transportation industry, such Terminals & Towage, Logistics & Services, and Manufacturing & Others, which are included in our Sustainability and ESG reporting.
B51: Total amount of monetary losses as a result of legal proceedings associated with bribery or corruption | C51: USD | D51: TR-MT-510a.2 | E51: 0 | F51: 0 | G51: 0 | H51: 0
B53: Accident & safety management
C55: Unit | D55: Reference | E55: 2022 | F55: Development from previous year | G55: 2021 | H55: 2020
B56: Number of marine casualties | C56: Number | D56: TR-MT-540a.1 | E56: 7 | F56: =(E56-G56)/G56 -> -0.3 | G56: 10 | H56: 16 | J56: Scope limited to operations of vessels for which Maersk holds the Document of Compliance (DOC).This includes bareboat charters where Maersk, Alianca or Maersk Line Ltd. holds the DOC. Note that the scope of SASB disclosures differs from other ESG disclosures and data in this report, as well as from the Maersk Sustainability Report 2021. Because the SASB Marine Transportation Industry Standard is industry-specific, the disclosures exclude Maersk segments outside the marine transportation industry, such Terminals & Towage, Logistics & Services, and Manufacturing & Others, which are included in our Sustainability and ESG reporting.
B57: Percentage of which classified as very serious | C57: Percentage (%) | D57: TR-MT-540a.1 | E57: 0 | F57: =ROUND(E57-G57,2)&" %-points" -> -20 %-points | G57: 20 | H57: 0
B58: Number of Conditions of Class or Recommendations | C58: Number | D58: TR-MT-540a.2 | E58: 1088 | F58: =(E58-G58)/G58 -> 0.203539823 | G58: 904 | H58: 871
B59: Number of port state control | J59: Number of port state control deficiencies and detentions are reported as a ratio, rather than number. It is the industry norm to report port state control performance as a ratio, representing deficiencies (or detentions) compared to total inspections, which provides important context to the metrics. The ratio is calculated as the number of deficiencies (or detentions) divided by the total number of PSC inspections.
B60: (1) deficiencies | C60: Ratio | D60: TR-MT-540a.3 | E60: 0.83 | F60: =(E60-G60)/G60 -> 0.05063291139 | G60: 0.79 | H60: 0.87
B61: (2) detentions | C61: Ratio | D61: TR-MT-540a.3 | E61: 0.011 | F61: =(E61-G61)/G61 -> 1.2 | G61: 0.005 | H61: 0.005
B63: Activity metrics
C65: Unit | D65: Reference | E65: 2022 | F65: Development from previous year | G65: 2021 | H65: 2020
B66: Number of shipboard employees | C66: Number | D66: TR-MT-000.A | E66: 14830 | F66: =(E66-G66)/G66 -> -0.0643533123 | G66: 15850 | H66: 15557 | J66: Scope limited to operations of vessels for which Maersk holds the Document of Compliance (DOC).This includes bareboat charters where Maersk, Alianca or Maersk Line Ltd. holds the DOC. Note that the scope of SASB disclosures differs from other ESG disclosures and data in this report, as well as from the Maersk Sustainability Report 2021. Because the SASB Marine Transportation Industry Standard is industry-specific, the disclosures exclude Maersk segments outside the marine transportation industry, such Terminals & Towage, Logistics & Services, and Manufacturing & Others, which are included in our Sustainability and ESG reporting.
B67: Total distance travelled by vessels | C67: Nautical Miles (nm) | D67: TR-MT-000.B | E67: 25799514.91 | F67: 0.01868460272 | G67: 25326303 | H67: 28863524
B68: Operating days | C68: Days | D68: TR-MT-000.C | E68: 112587 | F68: 0.02548524898 | G68: 109789 | H68: 114914
B69: Deadweight tonnage | C69: Thousand deadweight tons | D69: TR-MT-000.D | E69: 29187001 | F69: 0.07646338179 | G69: 27113789 | H69: 29512104
B70: Number of vessels in total shipping fleet | C70: Number | D70: TR-MT-000.E | E70: 310 | F70: 0 | G70: 310 | H70: 313
B71: Number of vessel port calls | C71: Number | D71: TR-MT-000.F | E71: 19964 | F71: -0.1252683696 | G71: 22823 | H71: 26152
B72: Twenty-foot equivalent unit (TEU) capacity | C72: TEU | D72: TR-MT-000.G | E72: 2433751 | F72: 0.002616792707 | G72: 2427399 | H72: 2459419

Sheet TCFD
B5: Task Force on Climate-Related Financial Disclosures (TCFD)
B7: Notes for reporting The table below provides section and page references to the A.P. Moller - Maersk 2022 Sustainability Report, where information recommended for disclosure by the Task Force on Climate-Related Financial Disclosures (TCFD) can be found. Further details will be provided in Maersk’s annual disclosure to CDP.
B9: Resources
B10: Sustainability Report 2022
B11: Maersk' CDP submission
B13: KPIs
B15: GOVERNANCE
B17: Theme | C17: Recommendation | D17: Sustainability Report section/pages
B18: Disclose the organisation’s governance around climate-related risks and opportunities. | C18: Describe the board’s oversight of climate-related risks and opportunities. | D18: ESG strategy and governance/pp. 10-12
C19: Describe management’s role in assessing and managing climate-related risks and opportunities. | D19: ESG strategy and governance/pp. 10-12
B21: STRATEGY
B23: Indicator | C23: Unit | D23: Reference
B24: Disclose the actual and potential impacts of climate-related risks and opportunities on the organisation’s businesses, strategy and financial planning where such information is material. | C24: Describe the climate-related risks and opportunities the organisation has identified over the short-, medium- and long-term. | D24: Materiality and stakeholder engagement/pp. 13-16
C25: Describe the impact of climate-related risks and opportunities on the organisation’s businesses, strategy and financial planning. | D25: Climate change/pp. 18-28 How we engage with customers on sustainability/ p. 16
C26: Describe the resilience of the organisation’s strategy, taking into consideration different climate-related scenarios, including a 2°C or lower scenario. | D26: Climate-related risk disclosures/p. 28
B28: RISK MANAGEMENT
B30: Indicator | C30: Unit | D30: Reference
B31: Disclose how the organisation identifies, assesses and manages climate-related risks. | C31: Describe the organisation’s processes for managing climate-related risks. | D31: Materiality and stakeholder engagement/pp. 13-16 Climate-related risk disclosures/p. 28
C32: Describe the organisation’s processes for identifying and assessing climate-related risks. | D32: Materiality and stakeholder engagement/pp. 13-16 Climate change/pp. 18-28 Climate-related risk disclosures/p. 28
C33: Describe how processes for identifying, assessing and managing climate-related risks are integrated into the organisation’s overall risk management. | D33: Materiality and stakeholder engagement/pp. 13-16
B35: METRICS AND TARGETS
B37: Indicator | C37: Unit | D37: Reference
B38: Disclose the metrics and targets used to assess and manage relevant climate-related risks and opportunities where such information is material. | C38: Disclose the metrics used by the organisation to assess climate-related risks and opportunities in line with its strategy and risk management process. | D38: Our greenhouse gas emissions footprint/pp. 25 Performance data/pp. 55
C39: Disclose Scope 1, Scope 2 and , if appropriate, Scope 3 greenhouse gas (GHG) emissions, and the related risks. | D39: Our greenhouse gas emissions footprint/pp. 25 Performance data/pp. 55

Sheet Ratings
B5: ESG ratings
B7: ESG Ratings
B8: A.P. Moller - Maersk is rated by different ESG ratings. We value transparent and meaningful methodology and feedback, helping us to improve on the most material aspects. See below Maersk's performance on a number of prioritised ESG ratings.
B10: KPIs
B12: Scoring
B14: Indicator | C14: Scale (high to low) | D14: 2022 | E14: 2021 | F14: 2020 | G14: 2019 | H14: Source
B15: CDP | C15: A - F | D15: A- | E15: B | F15: B | G15: B | H15: CDP
B16: EcoVadis | C16: Platinum - bronze | D16: Gold | E16: Silver | F16: Silver | G16: Silver | H16: EcoVadis
B17: MSCI | C17: AAA - CCC | D17: AA | E17: AA | F17: A | G17: A | H17: MSCI
B18: S&P Dow Jones | C18: 100-0 | D18: 60 | E18: 52 | F18: 35 | G18: 30 | H18: S&P Dow Jones
B19: Sustainalytics | C19: Negligible - Severe | D19: 17 (low risk) | E19: 22.6 (medium risk) | F19: 22.0 (Medium risk) | G19: 21.9 (Medium risk) | H19: Sustainalytics
B20: CA100+ Net-Zero Company Benchmark | C20: - Meet criteria | D20: 3 | E20: 2 | F20: 2 | G20: - | H20: CA100
C21: - Partially meet criteria | D21: 4 | E21: 4 | F21: 5 | G21: -
C22: - Do not meet criteria | D22: 2 | E22: 3 | F22: 2 | G22: -

Sheet Engage
C7: We value your feedback
C9: We welcome any questions, comments or suggestions you might have to this ESG Factbook and our performance and to our work with sustainability and ESG in general.
C11: Please send your feedback to:
C13: A.P. Moller - Maersk
C14: Esplanaden 50
C15: 1098 Copenhagen
C16: Denmark
C17: Attn: Sustainability
C19: You can also send an email to: sustainability@maersk.com
C21: Editors
C22: Frederik Bo Rementorp
C23: Katrine Juhl Jespersen
C26: News and Reporting
C28: Online | H28: Engage with us
E29: Maersk.com | J29: Linkedin.com/company/maersk-group
E30: Maersk.com/press | J30: Twitter.com/Maersk
E31: Investor.maersk.com | J31: Instagram.com/maersk_official
E32: Maersk.com/sustainability | J32: Facebook.com/Maersk
J33: Youtube.com/Maersk
J34: Tiktok.com/@maersk_official
J35: Maersk.com/wechat
